{"text_format":"1","workbook":"xlsx","n_sheets":6,"sheets":["Recensement cours","Activités BNY","Activités Maski","Activités Shawi","Activités VB","Base de données"],"not_rendered":{"charts":0,"images":0,"macros":1,"external_links":0,"defined_names":12,"comments":0,"pivot_tables":0},"unopened":[],"bounds":{"document_bytes":16777216,"sheet_cells":100000,"rows_first":2000,"rows_last":500,"rows_between":2000,"halvings":0,"cell_chars":16384,"cell_head_chars":4096},"cells_cut":0,"cells_raw":0,"read":"whole","date_system":"1900"}

{"sheet":"Recensement cours","index":0,"n_rows":51,"n_cols":11,"rows_kept":51,"cut":false,"hidden":false,"merged":[[45,1,50,1],[45,0,50,0],[0,0,0,10],[14,1,29,1],[2,0,12,0],[2,1,12,1],[14,0,29,0],[31,0,43,0],[31,1,43,1]]}
["Recensement des inscriptions activités sur le lieu de travail | Autonome 2018"]
["Zone","Territoire","Installation","Local","Nombre \nd'inscriptions","Cours","Plage horaire","Professeur","Cout","Nombre participant min ou max","Montant à acheminer paie"]
["CENTRE","Maski","COMTER",124,{"$f":"COUNTA('Activités Maski'!K8:K780)","v":9},"Yoga","Mardi 12 h 5","aaa gggg",2,null,{"$f":"SUM(E3*I3)","v":18}]
[null,null,"COMTER",124,{"$f":"COUNTA('Activités Maski'!L8:L780)","v":0},"CARDIO  ","Lundi 12 h 10","dfkljdkfljd",1,null,{"$f":"SUM(E4*I4)","v":0}]
[null,null,"Centre de services Comtois",null,{"$f":"COUNTA('Activités Maski'!M8:M780)","v":0},null,null,null,null,null,0]
[null,null,"Centre de services Comtois",null,{"$f":"COUNTA('Activités Maski'!N8:N780)","v":0},null,null,null,null,null,0]
[null,null,"COMTER",124,{"$f":"COUNTA('Activités Maski'!O8:O780)","v":0},"CARDIO ","Mercredi 16 h 15","fdkjfdlfkjd",2,null,0]
[null,null,"Centre de services Comtois",null,{"$f":"COUNTA('Activités Maski'!P8:P780)","v":0},null,null,null,null,null,0]
[null,null,"AD","ENTRAINEMENT",{"$f":"COUNTA('Activités Maski'!Q8:Q780)","v":0},"CARDIO","Lundi 15 h 30","dflkjfdlkfjd",2,null,0]
[null,null,"AD","ENTRAINEMENT",{"$f":"COUNTA('Activités Maski'!R8:R780)","v":8},"CARDIO","Lundi 16 h 15","dfkjdlkfjdkl",3,null,24]
[null,null,"AD","CHAPELLLE",{"$f":"COUNTA('Activités Maski'!S8:S780)","v":8},"Yoga","Jeudi 16 h 15","adfafsfd",2,null,16]
[null,null,"Valide dans plusieurs installations",null,{"$f":"COUNTA('Activités Maski'!T8:T780)","v":2},"Flexi carte Maski","Horaire varié",null,2,null,4]
[null,null,null,null,12,null,null,"à",null,"Total",{"$f":"SUM(K3:K12)","v":62}]
["Zone","Territoire","Installation","Local","Nombre \nd'inscriptions","Cours","Plage horaire","Professeur","Cout","Nombre participant min ou max","Montant à acheminer paie"]
["CENTRE","BNY",null,null,null,null,null,null,null,null,{"$f":"SUM(E15*I15)","v":0}]
[null,null,"CHRIST","NOLET",{"$f":"COUNTA('Activités BNY'!S8:S754)","v":1},"YOGA","Lundi 12 h 5","dfafsfdas",2,"Groupe de 8 participants min",{"$f":"SUM(E16*I16)","v":2}]
[null,null,"CHRIT","NOLET",{"$f":"COUNTA('Activités BNY'!T8:T754)","v":3},"Spinning","Jeudi 12 h 5","fdfdfdfdf",3,"Groupe de 20 participants max",9]
[null,null,"Centre Christ-Roi",null,{"$f":"COUNTA('Activités BNY'!U8:U754)","v":0},null,null,null,null,null,0]
[null,null,"CELESTIN","RITA",{"$f":"COUNTA('Activités BNY'!P8:P754)","v":3},"PiYo","Mardi 12 h","dffdsfas",1,"Groupe de 6 participants min",3]
[null,null,"Centre d'hébergement St-Célestin",null,{"$f":"COUNTA('Activités BNY'!O8:O754)","v":0},null,null,null,null,null,0]
[null,null,"Centre d'hébergement St-Célestin",null,{"$f":"COUNTA('Activités BNY'!Q8:Q754)","v":0},null,null,null,null,null,0]
[null,null,"FILLES","AVANT",{"$f":"COUNTA('Activités BNY'!W8:W754)","v":3},"Cardio Jog","Jeudi 12 h 5","fsdfasdfsdafsdf",2,"Groupe de 8 participants min",6]
[null,null,"FILLES","CHAPELLLE",{"$f":"COUNTA('Activités BNY'!V8:V754)","v":8},"ABDO","Lundi 12 h 15","dfdsfafddsa",3,"Groupe de 8 participants min",24]
[null,null,"Centre Filles de la sagesse",null,{"$f":"COUNTA('Activités BNY'!X8:X754)","v":0},null,null,null,null,null,0]
[null,null,"FORTIER","MULTI",{"$f":"COUNTA('Activités BNY'!K8:K754)","v":6},"Bodyfit","Mercredi 12 h","ffsdfdasfas",2,"Groupe de 6 participants min",12]
[null,null,"Centre Fortierville",null,{"$f":"COUNTA('Activités BNY'!L8:L754)","v":0},null,null,null,null,null,0]
[null,null,"POINT  ","JOUR",{"$f":"COUNTA('Activités BNY'!M8:M754)","v":0},"Pound","Lundi 12 h","fsdfasfsf",3,"Groupe de 6 participants min",0]
[null,null,"Point de service Gentilly",null,{"$f":"COUNTA('Activités BNY'!N8:N754)","v":0},null,null,null,null,null,0]
[null,null,"Valide dans plusieurs installations",null,{"$f":"COUNTA('Activités BNY'!Y8:Y754)","v":1},"Flexi carte BNY","Horaire varié",null,2,null,2]
[null,null,null,null,20,null,null,null,null,"Total",{"$f":"SUM(K15:K29)","v":58}]
["Zone","Territoire","Installation","Local","Nombre \nd'inscriptions","Cours","Plage horaire","Professeur","Cout","Nombre participant min ou max","Montant à acheminer paie"]
["NORD","Énergie","C. ADM",300,{"$f":"COUNTA('Activités Shawi'!N8:N868)","v":18},"TABATA","Lundi 12 h 5","ffadafsdfdà",2,null,{"$f":"SUM(E32*I32)","v":36}]
[null,null,"C. ADM",300,{"$f":"COUNTA('Activités Shawi'!O8:O868)","v":8},"TABATA","Lundi 16 h 10","ffadfsafas",3,null,{"$f":"SUM(E33*I33)","v":24}]
[null,null,"C.ADM",300,{"$f":"COUNTA('Activités Shawi'!P8:P868)","v":8},"TABATA","Mercredi 12 h 5","fasdfasfasde",2,null,16]
[null,null,"Centre adminstratif de l'Énergie ",null,{"$f":"COUNTA('Activités Shawi'!Q8:Q868)","v":0},null,null,null,null,null,0]
[null,null,"Centre d'hébergement Laflèche","Local loisirs 5e",{"$f":"COUNTA('Activités Shawi'!R8:R868)","v":0},"Programmes variés : Tabata, Bootcamp, Insanity","Mercredi pm",null,null,null,0]
[null,null,"Centre d'hébergement Laflèche",null,{"$f":"COUNTA('Activités Shawi'!S8:S868)","v":0},null,null,null,null,null,0]
[null,null,"CLSC du Centre-de-la-Mauricie","R-25",{"$f":"COUNTA('Activités Shawi'!T8:T868)","v":0},"Pound","Jeudi midi",null,null,null,0]
[null,null,"CLSC du Centre-de-la-Mauricie",null,{"$f":"COUNTA('Activités Shawi'!U8:U868)","v":0},null,null,null,null,null,0]
[null,null,"HOP ",255,{"$f":"COUNTA('Activités Shawi'!K8:K868)","v":0},"TABATA","Lundi et mardi 12 h 5","dfafsafs",3,null,0]
[null,null,"HOP ",255,{"$f":"COUNTA('Activités Shawi'!L8:L868)","v":14},"TABATA","Mardi 16 h 10","fdafasfsaw",2,null,28]
[null,null,"Hôpital du Centre-de-la-Mauricie",null,{"$f":"COUNTA('Activités Shawi'!M8:M868)","v":0},null,null,null,null,null,0]
[null,null,"Valide dans plusieurs installations",null,{"$f":"COUNTA('Activités Shawi'!V8:V868)","v":0},"Flexi carte Shawinigan","Horaire varié",null,2,null,0]
[null,null,null,null,28,null,null,null,null,"Total",{"$f":"SUM(K32:K43)","v":104}]
["Zone","Territoire","Installation","Local","Nombre \nd'inscriptions","Cours","Plage horaire","Professeur","Cout","Nombre participant min ou max","Montant à acheminer paie"]
["NORD","VB","GENEVIEVE","GAGNON",{"$f":"COUNTA('Activités VB'!K8:K361)","v":0},"Yoga","Mardi 12 h 5","fsfdasf",2,null,{"$f":"SUM(E46*I46)","v":0}]
[null,null,"GENEVIEVE","GAGNON",{"$f":"COUNTA('Activités VB'!L8:L362)","v":4},"TABATA","3 ateliers 25$ un atelier 10$ chaque","afafasfas",3,null,{"$f":"SUM(E47*I47)","v":12}]
[null,null,"TITE",45,{"$f":"COUNTA('Activités VB'!M8:M363)","v":5},"Yoga","Lundi 12 h 5","fafasfasf",2,null,{"$f":"SUM(E48*I48)","v":10}]
[null,null,"TITE",45,{"$f":"COUNTA('Activités VB'!N8:N364)","v":6},"TABATA","Jeudi 16 h 15","sfdasfasfasw",3,null,{"$f":"SUM(E49*I49)","v":18}]
[null,null,"Valide dans plusieurs installations",null,{"$f":"COUNTA('Activités VB'!O8:O365)","v":0},"Flexi carte VB","Horaire varié",null,2,null,{"$f":"SUM(E50*I50)","v":0}]
[null,null,null,null,11,null,null,null,null,"Total",{"$f":"SUM(K46:K50)","v":40}]

{"sheet":"Activités BNY","index":1,"n_rows":210,"n_cols":25,"rows_kept":210,"cut":false,"hidden":false,"merged":[[2,9,6,9],[0,10,0,21],[1,10,1,11],[1,12,1,13],[1,14,1,16],[1,17,1,20],[1,21,1,23],[2,8,6,8],[2,5,6,5],[2,7,6,7],[2,0,6,0],[0,0,1,8],[2,4,6,4],[2,3,6,3],[2,2,6,2],[2,1,6,1],[2,6,6,6]]}
["Coordonnées des participants",null,null,null,null,null,null,null,null,null,"Cours offerts BNY"]
[null,null,null,null,null,null,null,null,null,null,{"$f":"'Recensement cours'!C25","v":"FORTIER"},null,{"$f":"'Recensement cours'!C27","v":"POINT  "},null,{"$f":"'Recensement cours'!C19","v":"CELESTIN"},null,null,{"$f":"'Recensement cours'!C16","v":"CHRIST"},null,null,null,"Filles",null,null,"Autres"]
["Date réception","# Employé","Nom","Prénom","Téléphone","BNY","Courriel","Commentaires","Paiement                       reçu ou                   en attente","Montant payé",{"$f":"'Recensement cours'!F25","v":"Bodyfit"},{"$f":"'Recensement cours'!F26","v":0},{"$f":"'Recensement cours'!F27","v":"Pound"},{"$f":"'Recensement cours'!F28","v":0},{"$f":"'Recensement cours'!F20","v":0},{"$f":"'Recensement cours'!F19","v":"PiYo"},{"$f":"'Recensement cours'!F21","v":0},{"$f":"'Recensement cours'!F15","v":0},{"$f":"'Recensement cours'!F16","v":"YOGA"},{"$f":"'Recensement cours'!F17","v":"Spinning"},{"$f":"'Recensement cours'!F18","v":0},{"$f":"'Recensement cours'!F23","v":"ABDO"},{"$f":"'Recensement cours'!F22","v":"Cardio Jog"},{"$f":"'Recensement cours'!F24","v":0},{"$f":"'Recensement cours'!F29","v":"Flexi carte BNY"}]
[null,null,null,null,null,null,null,null,null,null,{"$f":"'Recensement cours'!G25","v":"Mercredi 12 h"},{"$f":"'Recensement cours'!G26","v":0},{"$f":"'Recensement cours'!G27","v":"Lundi 12 h"},{"$f":"'Recensement cours'!G28","v":0},{"$f":"'Recensement cours'!G20","v":0},{"$f":"'Recensement cours'!G19","v":"Mardi 12 h"},{"$f":"'Recensement cours'!G21","v":0},{"$f":"'Recensement cours'!G15","v":0},{"$f":"'Recensement cours'!G16","v":"Lundi 12 h 5"},{"$f":"'Recensement cours'!G17","v":"Jeudi 12 h 5"},{"$f":"'Recensement cours'!G18","v":0},{"$f":"'Recensement cours'!G23","v":"Lundi 12 h 15"},{"$f":"'Recensement cours'!G22","v":"Jeudi 12 h 5"},{"$f":"'Recensement cours'!G24","v":0},{"$f":"'Recensement cours'!G29","v":"Horaire varié"}]
[null,null,null,null,null,null,null,null,null,null,{"$f":"'Recensement cours'!H25","v":"ffsdfdasfas"},{"$f":"'Recensement cours'!H26","v":0},{"$f":"'Recensement cours'!H27","v":"fsdfasfsf"},{"$f":"'Recensement cours'!H28","v":0},{"$f":"'Recensement cours'!H20","v":0},{"$f":"'Recensement cours'!H19","v":"dffdsfas"},{"$f":"'Recensement cours'!H21","v":0},{"$f":"'Recensement cours'!H15","v":0},{"$f":"'Recensement cours'!H16","v":"dfafsfdas"},{"$f":"'Recensement cours'!H17","v":"fdfdfdfdf"},{"$f":"'Recensement cours'!H18","v":0},{"$f":"'Recensement cours'!H23","v":"dfdsfafddsa"},{"$f":"'Recensement cours'!H22","v":"fsdfasdfsdafsdf"},{"$f":"'Recensement cours'!H26","v":0},{"$f":"'Recensement cours'!H29","v":0}]
[null,null,null,null,null,null,null,null,null,null,{"$f":"'Recensement cours'!I25","v":2},{"$f":"'Recensement cours'!I26","v":0},{"$f":"'Recensement cours'!I27","v":3},{"$f":"'Recensement cours'!I28","v":0},{"$f":"'Recensement cours'!I20","v":0},{"$f":"'Recensement cours'!I19","v":1},{"$f":"'Recensement cours'!I21","v":0},{"$f":"'Recensement cours'!I15","v":0},{"$f":"'Recensement cours'!I16","v":2},{"$f":"'Recensement cours'!I17","v":3},{"$f":"'Recensement cours'!I18","v":0},{"$f":"'Recensement cours'!I23","v":3},{"$f":"'Recensement cours'!I22","v":2},{"$f":"'Recensement cours'!I26","v":0},{"$f":"'Recensement cours'!I29","v":2}]
[null,null,null,null,null,null,null,null,null,null,{"$f":"'Recensement cours'!J25","v":"Groupe de 6 participants min"},{"$f":"'Recensement cours'!J26","v":0},{"$f":"'Recensement cours'!J27","v":"Groupe de 6 participants min"},{"$f":"'Recensement cours'!J28","v":0},{"$f":"'Recensement cours'!J20","v":0},{"$f":"'Recensement cours'!J19","v":"Groupe de 6 participants min"},{"$f":"'Recensement cours'!J21","v":0},{"$f":"'Recensement cours'!J15","v":0},{"$f":"'Recensement cours'!J16","v":"Groupe de 8 participants min"},{"$f":"'Recensement cours'!J17","v":"Groupe de 20 participants max"},{"$f":"'Recensement cours'!J18","v":0},{"$f":"'Recensement cours'!J23","v":"Groupe de 8 participants min"},{"$f":"'Recensement cours'!J22","v":"Groupe de 8 participants min"},{"$f":"'Recensement cours'!J28","v":0},{"$f":"'Recensement cours'!J29","v":0}]
["2018-08-30",2555,"Auger","mario",8195555555,"BNY","abcdef@hotmail.com",null,"Oui chèque",{"$f":"SUMIF(K8:Y8,\"<>\",$K$6:$Y$6)","v":2},"x"]
["2018-08-30",66666,"Bellavance","luc",8196666666,"BNY","addtggr@hotmail.comà",null,"Oui chèque",{"$f":"SUMIF(K9:Y9,\"<>\",$K$6:$Y$6)","v":3},null,null,null,null,null,null,null,null,null,null,null,"x"]
["2018-08-30",65,"Blanchette","guillermo",8197777777,"BNY","abcdef@hotmail.com",null,"Oui chèque",{"$f":"SUMIF(K10:Y10,\"<>\",$K$6:$Y$6)","v":2},"x"]
["2018-09-02",22222,"Brousseau","david",8198888888,"BNY","addtggr@hotmail.comà",null,"Oui chèque",{"$f":"SUMIF(K11:Y11,\"<>\",$K$6:$Y$6)","v":1},null,null,null,null,null,"x"]
["2018-08-30",65,"Carignan","louis",8199999999,"BNY","abcdef@hotmail.com",null,"Oui chèque",{"$f":"SUMIF(K12:Y12,\"<>\",$K$6:$Y$6)","v":3},null,null,null,null,null,null,null,null,null,null,null,"x"]
["2018-08-30",555555,"Constant","william",8201111110,"BNY","addtggr@hotmail.comà",null,"Non en attente",-3,null,null,null,null,null,null,null,null,null,null,null,"x",null,null,"x"]
["2018-08-30",322682,"Côté","mateo",8202222221,"BNY","abcdef@hotmail.com",null,"Oui chèque",{"$f":"SUMIF(K14:Y14,\"<>\",$K$6:$Y$6)","v":2},"x"]
["2018-08-30",88,"Dolan","charles",8203333332,"BNY","addtggr@hotmail.comà",null,"Oui chèque",{"$f":"SUMIF(K15:Y15,\"<>\",$K$6:$Y$6)","v":3},null,null,null,null,null,null,null,null,null,"x"]
["2018-09-02",886565,"Fortin","derek",8204444443,"BNY","abcdef@hotmail.com",null,"Oui chèque",{"$f":"SUMIF(K16:Y16,\"<>\",$K$6:$Y$6)","v":6},null,null,null,null,null,null,null,null,null,"x",null,"x"]
["2018-09-11",212121,"Gervais","sylvain",8205555554,"BNY","addtggr@hotmail.comà",null,"Oui chèque",91,null,null,null,null,null,"x"]
["2018-09-11",21212121,"Gouin","sebastien",8206666665,"BNY","abcdef@hotmail.com",null,"Oui chèque",{"$f":"SUMIF(K18:Y18,\"<>\",$K$6:$Y$6)","v":3},null,null,null,null,null,null,null,null,null,null,null,"x"]
["2018-08-30",300616,"caron","luc",8207777776,"BNY","addtggr@hotmail.comà",null,"Oui chèque",3,null,null,null,null,null,null,null,null,null,"x"]
["2018-08-30",5454545,"Leclerc","steven",8208888887,"BNY","abcdef@hotmail.com",null,"Oui chèque",2,"x"]
["2018-08-30",554555,"Lemay","gino",8209999998,"BNY","addtggr@hotmail.comà",null,"Oui chèque",2,"x"]
["2018-09-12",222226,"Martel","ggg",8211111109,"BNY","abcdef@hotmail.com",null,"Oui chèque",1,null,null,null,null,null,"x"]
["2018-08-30",24857487,"Massé","dert",8212222220,"BNY","addtggr@hotmail.comà",null,"Oui chèque",2,null,null,null,null,null,null,null,null,null,null,null,null,"x"]
["2018-09-14",14545121,"Mongrain","ttrfre",8213333331,"BNY","abcdef@hotmail.com",null,"Oui chèque",3,null,null,null,null,null,null,null,null,null,null,null,"x"]
["2018-08-30",54584545,"Pépin","ddesw",8214444442,"BNY","addtggr@hotmail.comà",null,"Oui chèque",5,null,null,null,null,null,null,null,null,null,null,null,"x","x"]
["2018-08-30",545454,"Roy","sdsds",8215555553,"BNY","abcdef@hotmail.com",null,"Oui chèque",5,null,null,null,null,null,null,null,null,null,null,null,"x","x"]
["2018-09-11",8874878,"Roy","dsdf",8216666664,"BNY","addtggr@hotmail.comà",null,"Oui chèque",84,null,null,null,null,null,null,null,null,"x"]
["2018-09-11",8748748748,"Tremblay","dfdsf",8217777775,"BNY","abcdef@hotmail.com",null,"Oui chèque",{"$f":"SUMIF(K28:Y28,\"<>\",$K$6:$Y$6)","v":2},"x"]
[null,null,null,null,null,"BNY",null,null,null,{"$f":"SUMIF(K29:Y29,\"<>\",$K$6:$Y$6)","v":0}]
[null,null,null,null,null,"BNY",null,null,null,{"$f":"SUMIF(K30:Y30,\"<>\",$K$6:$Y$6)","v":0}]
[null,null,null,null,null,"BNY",null,null,null,{"$f":"SUMIF(K31:Y31,\"<>\",$K$6:$Y$6)","v":0}]
[null,null,null,null,null,"BNY",null,null,null,{"$f":"SUMIF(K32:Y32,\"<>\",$K$6:$Y$6)","v":0}]
[null,null,null,null,null,"BNY",null,null,null,{"$f":"SUMIF(K33:Y33,\"<>\",$K$6:$Y$6)","v":0}]
[{"$f":"COUNT(B8:B32)","v":21},null,null,null,null,"BNY",null,null,null,0]
[null,null,null,null,null,"BNY",null,null,null,0]
[null,null,null,null,null,"BNY",null,null,null,0]
[null,null,null,null,null,"BNY",null,null,null,0]
[null,null,null,null,null,"BNY",null,null,null,0]
[null,null,null,null,null,"BNY",null,null,null,0]
[null,null,null,null,null,"BNY",null,null,null,0]
[null,null,null,null,null,"BNY",null,null,null,0]
[null,null,null,null,null,"BNY",null,null,null,0]
[null,null,null,null,null,"BNY",null,null,null,0]
[null,null,null,null,null,"BNY",null,null,null,0]
[null,null,null,null,null,"BNY",null,null,null,0]
[null,null,null,null,null,"BNY",null,null,null,0]
[null,null,null,null,null,"BNY",null,null,null,0]
[null,null,null,null,null,"BNY",null,null,null,0]
[null,null,null,null,null,"BNY",null,null,null,0]
[null,null,null,null,null,"BNY",null,null,null,0]
[null,null,null,null,null,"BNY",null,null,null,0]
[null,null,null,null,null,"BNY",null,null,null,0]
[null,null,null,null,null,"BNY",null,null,null,0]
[null,null,null,null,null,"BNY",null,null,null,0]
[null,null,null,null,null,"BNY",null,null,null,0]
[null,null,null,null,null,"BNY",null,null,null,0]
[null,null,null,null,null,"BNY",null,null,null,0]
[null,null,null,null,null,"BNY",null,null,null,0]
[null,null,null,null,null,"BNY",null,null,null,0]
[null,null,null,null,null,"BNY",null,null,null,0]
[null,null,null,null,null,"BNY",null,null,null,0]
[null,null,null,null,null,"BNY",null,null,null,0]
[null,null,null,null,null,"BNY",null,null,null,0]
[null,null,null,null,null,"BNY",null,null,null,0]
[null,null,null,null,null,"BNY",null,null,null,0]
[null,null,null,null,null,"BNY",null,null,null,0]
[null,null,null,null,null,"BNY",null,null,null,0]
[null,null,null,null,null,"BNY",null,null,null,0]
[null,null,null,null,null,"BNY",null,null,null,0]
[null,null,null,null,null,"BNY",null,null,null,0]
[null,null,null,null,null,"BNY",null,null,null,{"$f":"SUMIF(K71:Y71,\"<>\",$K$6:$Y$6)","v":0}]
[null,null,null,null,null,"BNY",null,null,null,0]
[null,null,null,null,null,"BNY",null,null,null,0]
[null,null,null,null,null,"BNY",null,null,null,0]
[null,null,null,null,null,"BNY",null,null,null,0]
[null,null,null,null,null,"BNY",null,null,null,0]
[null,null,null,null,null,"BNY",null,null,null,0]
[null,null,null,null,null,"BNY",null,null,null,0]
[null,null,null,null,null,"BNY",null,null,null,0]
[null,null,null,null,null,"BNY",null,null,null,0]
[null,null,null,null,null,"BNY",null,null,null,0]
[null,null,null,null,null,"BNY",null,null,null,0]
[null,null,null,null,null,"BNY",null,null,null,0]
[null,null,null,null,null,"BNY",null,null,null,0]
[null,null,null,null,null,"BNY",null,null,null,0]
[null,null,null,null,null,"BNY",null,null,null,0]
[null,null,null,null,null,"BNY",null,null,null,0]
[null,null,null,null,null,"BNY",null,null,null,0]
[null,null,null,null,null,"BNY",null,null,null,0]
[null,null,null,null,null,"BNY",null,null,null,0]
[null,null,null,null,null,"BNY",null,null,null,0]
[null,null,null,null,null,"BNY",null,null,null,0]
[null,null,null,null,null,"BNY",null,null,null,0]
[null,null,null,null,null,"BNY",null,null,null,0]
[null,null,null,null,null,"BNY",null,null,null,0]
[null,null,null,null,null,"BNY",null,null,null,0]
[null,null,null,null,null,"BNY",null,null,null,0]
[null,null,null,null,null,"BNY",null,null,null,0]
[null,null,null,null,null,"BNY",null,null,null,0]
[null,null,null,null,null,"BNY",null,null,null,0]
[null,null,null,null,null,"BNY",null,null,null,0]
[null,null,null,null,null,"BNY",null,null,null,0]
[null,null,null,null,null,"BNY",null,null,null,0]
[null,null,null,null,null,"BNY",null,null,null,0]
[null,null,null,null,null,"BNY",null,null,null,0]
[null,null,null,null,null,"BNY",null,null,null,0]
[null,null,null,null,null,"BNY",null,null,null,0]
[null,null,null,null,null,"BNY",null,null,null,0]
[null,null,null,null,null,"BNY",null,null,null,0]
[null,null,null,null,null,"BNY",null,null,null,0]
[null,null,null,null,null,"BNY",null,null,null,0]
[null,null,null,null,null,"BNY",null,null,null,0]
[null,null,null,null,null,"BNY",null,null,null,0]
[null,null,null,null,null,"BNY",null,null,null,0]
[null,null,null,null,null,"BNY",null,null,null,0]
[null,null,null,null,null,"BNY",null,null,null,0]
[null,null,null,null,null,"BNY",null,null,null,0]
[null,null,null,null,null,"BNY",null,null,null,0]
[null,null,null,null,null,"BNY",null,null,null,0]
[null,null,null,null,null,"BNY",null,null,null,0]
[null,null,null,null,null,"BNY",null,null,null,0]
[null,null,null,null,null,"BNY",null,null,null,0]
[null,null,null,null,null,"BNY",null,null,null,0]
[null,null,null,null,null,"BNY",null,null,null,0]
[null,null,null,null,null,"BNY",null,null,null,0]
[null,null,null,null,null,"BNY",null,null,null,0]
[null,null,null,null,null,"BNY",null,null,null,0]
[null,null,null,null,null,"BNY",null,null,null,0]
[null,null,null,null,null,"BNY",null,null,null,0]
[null,null,null,null,null,"BNY",null,null,null,0]
[null,null,null,null,null,"BNY",null,null,null,0]
[null,null,null,null,null,"BNY",null,null,null,0]
[null,null,null,null,null,"BNY",null,null,null,0]
[null,null,null,null,null,"BNY",null,null,null,0]
[null,null,null,null,null,"BNY",null,null,null,{"$f":"SUMIF(K135:Y135,\"<>\",$K$6:$Y$6)","v":0}]
[null,null,null,null,null,"BNY",null,null,null,0]
[null,null,null,null,null,"BNY",null,null,null,0]
[null,null,null,null,null,"BNY",null,null,null,0]
[null,null,null,null,null,"BNY",null,null,null,0]
[null,null,null,null,null,"BNY",null,null,null,0]
[null,null,null,null,null,"BNY",null,null,null,0]
[null,null,null,null,null,"BNY",null,null,null,0]
[null,null,null,null,null,"BNY",null,null,null,0]
[null,null,null,null,null,"BNY",null,null,null,0]
[null,null,null,null,null,"BNY",null,null,null,0]
[null,null,null,null,null,"BNY",null,null,null,0]
[null,null,null,null,null,"BNY",null,null,null,0]
[null,null,null,null,null,"BNY",null,null,null,0]
[null,null,null,null,null,"BNY",null,null,null,0]
[null,null,null,null,null,"BNY",null,null,null,0]
[null,null,null,null,null,"BNY",null,null,null,0]
[null,null,null,null,null,"BNY",null,null,null,0]
[null,null,null,null,null,"BNY",null,null,null,0]
[null,null,null,null,null,"BNY",null,null,null,0]
[null,null,null,null,null,"BNY",null,null,null,0]
[null,null,null,null,null,"BNY",null,null,null,0]
[null,null,null,null,null,"BNY",null,null,null,0]
[null,null,null,null,null,"BNY",null,null,null,0]
[null,null,null,null,null,"BNY",null,null,null,0]
[null,null,null,null,null,"BNY",null,null,null,0]
[null,null,null,null,null,"BNY",null,null,null,0]
[null,null,null,null,null,"BNY",null,null,null,0]
[null,null,null,null,null,"BNY",null,null,null,0]
[null,null,null,null,null,"BNY",null,null,null,0]
[null,null,null,null,null,"BNY",null,null,null,0]
[null,null,null,null,null,"BNY",null,null,null,0]
[null,null,null,null,null,"BNY",null,null,null,0]
[null,null,null,null,null,"BNY",null,null,null,0]
[null,null,null,null,null,"BNY",null,null,null,0]
[null,null,null,null,null,"BNY",null,null,null,0]
[null,null,null,null,null,"BNY",null,null,null,0]
[null,null,null,null,null,"BNY",null,null,null,0]
[null,null,null,null,null,"BNY",null,null,null,0]
[null,null,null,null,null,"BNY",null,null,null,0]
[null,null,null,null,null,"BNY",null,null,null,0]
[null,null,null,null,null,"BNY",null,null,null,0]
[null,null,null,null,null,"BNY",null,null,null,0]
[null,null,null,null,null,"BNY",null,null,null,0]
[null,null,null,null,null,"BNY",null,null,null,0]
[null,null,null,null,null,"BNY",null,null,null,0]
[null,null,null,null,null,"BNY",null,null,null,0]
[null,null,null,null,null,"BNY",null,null,null,0]
[null,null,null,null,null,"BNY",null,null,null,0]
[null,null,null,null,null,"BNY",null,null,null,0]
[null,null,null,null,null,"BNY",null,null,null,0]
[null,null,null,null,null,"BNY",null,null,null,0]
[null,null,null,null,null,"BNY",null,null,null,0]
[null,null,null,null,null,"BNY",null,null,null,0]
[null,null,null,null,null,"BNY",null,null,null,0]
[null,null,null,null,null,"BNY",null,null,null,0]
[null,null,null,null,null,"BNY",null,null,null,0]
[null,null,null,null,null,"BNY",null,null,null,0]
[null,null,null,null,null,"BNY",null,null,null,0]
[null,null,null,null,null,"BNY",null,null,null,0]
[null,null,null,null,null,"BNY",null,null,null,0]
[null,null,null,null,null,"BNY",null,null,null,0]
[null,null,null,null,null,"BNY",null,null,null,0]
[null,null,null,null,null,"BNY",null,null,null,0]
[null,null,null,null,null,"BNY",null,null,null,{"$f":"SUMIF(K199:Y199,\"<>\",$K$6:$Y$6)","v":0}]
[null,null,null,null,null,"BNY",null,null,null,0]
[null,null,null,null,null,"BNY",null,null,null,0]
[null,null,null,null,null,"BNY",null,null,null,0]
[null,null,null,null,null,"BNY",null,null,null,0]
[null,null,null,null,null,"BNY",null,null,null,0]
[null,null,null,null,null,"BNY",null,null,null,0]
[null,null,null,null,null,"BNY",null,null,null,0]
[null,null,null,null,null,"BNY",null,null,null,0]
[null,null,null,null,null,"BNY",null,null,null,0]
[null,null,null,null,null,"BNY",null,null,null,0]
[null,null,null,null,null,"BNY",null,null,null,0]

{"sheet":"Activités Maski","index":2,"n_rows":208,"n_cols":21,"rows_kept":208,"cut":false,"hidden":false,"merged":[[1,19,1,20],[1,10,1,15],[0,10,0,17],[1,16,1,18],[0,0,1,8],[2,0,6,0],[2,1,6,1],[2,2,6,2],[2,3,6,3],[2,4,6,4],[2,5,6,5],[2,6,6,6],[2,7,6,7],[2,8,6,8],[2,9,6,9]]}
["Coordonnées des participants"]
[null,null,null,null,null,null,null,null,null,null,{"$f":"'Recensement cours'!C4","v":"COMTER"},null,null,null,null,null,{"$f":"'Recensement cours'!C9","v":"AD"},null,null,"Autres"]
["Date réception","# Employé","Nom","Prénom","Téléphone","Maskinongé","Courriel","Commentaires","Paiement                       reçu ou                   en attente","Montant payé",{"$f":"'Recensement cours'!F3","v":"Yoga"},{"$f":"'Recensement cours'!F4","v":"CARDIO  "},{"$f":"'Recensement cours'!F5","v":0},{"$f":"'Recensement cours'!F6","v":0},{"$f":"'Recensement cours'!F7","v":"CARDIO "},{"$f":"'Recensement cours'!F8","v":0},{"$f":"'Recensement cours'!F9","v":"CARDIO"},{"$f":"'Recensement cours'!F10","v":"CARDIO"},{"$f":"'Recensement cours'!F11","v":"Yoga"},{"$f":"'Recensement cours'!F12","v":"Flexi carte Maski"},{"$f":"'Recensement cours'!F13","v":0}]
[null,null,null,null,null,null,null,null,null,null,{"$f":"'Recensement cours'!G3","v":"Mardi 12 h 5"},{"$f":"'Recensement cours'!G4","v":"Lundi 12 h 10"},{"$f":"'Recensement cours'!G9","v":"Lundi 15 h 30"},{"$f":"'Recensement cours'!G10","v":"Lundi 16 h 15"},{"$f":"'Recensement cours'!G7","v":"Mercredi 16 h 15"},{"$f":"'Recensement cours'!G8","v":0},{"$f":"'Recensement cours'!G9","v":"Lundi 15 h 30"},{"$f":"'Recensement cours'!G10","v":"Lundi 16 h 15"},{"$f":"'Recensement cours'!G11","v":"Jeudi 16 h 15"},{"$f":"'Recensement cours'!G12","v":"Horaire varié"},{"$f":"'Recensement cours'!G13","v":0}]
[null,null,null,null,null,null,null,null,null,null,{"$f":"'Recensement cours'!H3","v":"aaa gggg"},{"$f":"'Recensement cours'!H4","v":"dfkljdkfljd"},{"$f":"'Recensement cours'!H5","v":0},{"$f":"'Recensement cours'!H6","v":0},{"$f":"'Recensement cours'!H7","v":"fdkjfdlfkjd"},{"$f":"'Recensement cours'!H8","v":0},{"$f":"'Recensement cours'!H9","v":"dflkjfdlkfjd"},{"$f":"'Recensement cours'!H10","v":"dfkjdlkfjdkl"},{"$f":"'Recensement cours'!H11","v":"adfafsfd"},null,{"$f":"'Recensement cours'!H13","v":"à"}]
[null,null,null,null,null,null,null,null,null,null,{"$f":"'Recensement cours'!I3","v":2},{"$f":"'Recensement cours'!I4","v":1},{"$f":"'Recensement cours'!I9","v":2},{"$f":"'Recensement cours'!I10","v":3},{"$f":"'Recensement cours'!I7","v":2},{"$f":"'Recensement cours'!I8","v":0},{"$f":"'Recensement cours'!I9","v":2},{"$f":"'Recensement cours'!I10","v":3},{"$f":"'Recensement cours'!I11","v":2},{"$f":"'Recensement cours'!I12","v":2},{"$f":"'Recensement cours'!I13","v":0}]
[null,null,null,null,null,null,null,null,null,null,{"$f":"'Recensement cours'!J3","v":0},{"$f":"'Recensement cours'!J4","v":0},{"$f":"'Recensement cours'!J5","v":0},{"$f":"'Recensement cours'!J6","v":0},{"$f":"'Recensement cours'!J7","v":0},{"$f":"'Recensement cours'!J8","v":0},{"$f":"'Recensement cours'!J9","v":0},{"$f":"'Recensement cours'!J10","v":0},{"$f":"'Recensement cours'!J11","v":0},{"$f":"'Recensement cours'!J12","v":0},{"$f":"'Recensement cours'!J13","v":"Total"}]
["2018-08-30",2555,"Auger","Guylaine",8195555555,"Maskinongé","abcdef@hotmail.com","avisée cours débute","Oui chèque",{"$f":"SUMIF(K8:W8,\"<>\",$K$6:$W$6)","v":5},null,null,null,null,null,null,null,"x","x"]
["2018-08-30",66666,"Bellavance","Sonia",8196666666,"Maskinongé","addtggr@hotmail.comà",null,"Oui chèque",3,null,null,null,null,null,null,null,"x"]
["2018-08-30",65,"Blanchette","Martine",8197777777,"Maskinongé","abcdef@hotmail.com",null,"Oui chèque",2,"x"]
["2018-09-02",22222,"Brousseau","Martine",8198888888,"Maskinongé","addtggr@hotmail.comà",null,"Oui chèque",2,"x"]
["2018-08-30",65,"Carignan","Véronique",8199999999,"Maskinongé","abcdef@hotmail.com",null,"Oui chèque",4,"x",null,null,null,null,null,null,null,null,"  "]
["2018-08-30",555555,"Constant","Carole",8201111110,"Maskinongé","addtggr@hotmail.comà",null,"Oui chèque",2,null,null,null,null,null,null,null,null,"x"]
["2018-08-30",322682,"Côté","Maggy",8202222221,"Maskinongé","abcdef@hotmail.com",null,"Oui chèque",5,null,null,null,null,null,null,null,"x",null,"x"]
["2018-08-30",88,"Dolan","Valérie",8203333332,"Maskinongé","addtggr@hotmail.comà",null,"Non en attente",-3,null,null,null,null,null,null,null,"x"]
["2018-09-02",886565,"Fortin","Marie-Eve",8204444443,"Maskinongé","abcdef@hotmail.com",null,"Oui chèque",{"$f":"SUMIF(K16:W16,\"<>\",$K$6:$W$6)","v":2},"x"]
["2018-09-11",212121,"Gervais","Sara-Pier",8205555554,"Maskinongé","addtggr@hotmail.comà","avisée cours débute","Oui chèque",{"$f":"SUMIF(K17:W17,\"<>\",$K$6:$W$6)","v":5},null,null,null,null,null,null,null,"x","x"]
["2018-09-11",21212121,"Gouin","Nathalie",8206666665,"Maskinongé","abcdef@hotmail.com",null,"Oui chèque",65,"x"]
["2018-08-30",300616,"caron","Jacqueline",8207777776,"Maskinongé","addtggr@hotmail.comà",null,"Oui chèque",{"$f":"SUMIF(K19:W19,\"<>\",$K$6:$W$6)","v":5},"x",null,null,null,null,null,null,"x"]
["2018-08-30",5454545,"Leclerc","Karine",8208888887,"Maskinongé","abcdef@hotmail.com",null,"Oui chèque",2,"x"]
["2018-08-30",554555,"Lemay","luv",8209999998,"Maskinongé","addtggr@hotmail.comà",null,"Non en attente",-2,"x"]
["2018-09-12",222226,"Martel","william",8211111109,"Maskinongé","abcdef@hotmail.com",null,"Non en attente",-2,"x"]
["2018-08-30",24857487,"Massé","simon",8212222220,"Maskinongé","addtggr@hotmail.comà",null,"Oui chèque",3,null,null,null,null,null,null,null,"x"]
["2018-09-14",14545121,"Mongrain","david",8213333331,"Maskinongé","abcdef@hotmail.com",null,"Oui chèque",5,null,null,null,null,null,null,null,"x","x"]
["2018-08-30",54584545,"Pépin","gino",8214444442,"Maskinongé","addtggr@hotmail.comà",null,"Oui chèque",2,null,null,null,null,null,null,null,null,"x"]
["2018-08-30",545454,"Roy","melissa",8215555553,"Maskinongé","abcdef@hotmail.com",null,"Oui chèque",2,null,null,null,null,null,null,null,null,"x"]
["2018-09-11",8874878,"Roy","johanne",8216666664,"Maskinongé","addtggr@hotmail.comà",null,"Oui chèque",2,null,null,null,null,null,null,null,null,"x"]
["2018-09-11",888,"Tremblay","tania",8217777775,"Maskinongé","abcdef@hotmail.com",null,"Oui chèque",2,null,null,null,null,null,null,null,null,"x"]
[null,null,null,null,null,"Maskinongé",null,null,null,0]
[null,null,null,null,null,"Maskinongé",null,null,null,0]
["12",null,null,null,null,"Maskinongé",null,null,null,0]
[null,null,null,null,null,"Maskinongé",null,null,null,0]
[null,null,null,null,null,"Maskinongé",null,null,null,0]
[null,null,null,null,null,"Maskinongé",null,null,null,0]
[null,null,null,null,null,"Maskinongé",null,null,null,0]
[null,null,null,null,null,"Maskinongé",null,null,null,0]
[null,null,null,null,null,"Maskinongé",null,null,null,0]
[null,null,null,null,null,"Maskinongé",null,null,null,0]
[null,null,null,null,null,"Maskinongé",null,null,null,0]
[null,null,null,null,null,"Maskinongé",null,null,null,0]
[null,null,null,null,null,"Maskinongé",null,null,null,0]
[null,null,null,null,null,"Maskinongé",null,null,null,0]
[null,null,null,null,null,"Maskinongé",null,null,null,0]
[null,null,null,null,null,"Maskinongé",null,null,null,0]
[null,null,null,null,null,"Maskinongé",null,null,null,0]
[null,null,null,null,null,"Maskinongé",null,null,null,0]
[null,null,null,null,null,"Maskinongé",null,null,null,0]
[null,null,null,null,null,"Maskinongé",null,null,null,0]
[null,null,null,null,null,"Maskinongé",null,null,null,0]
[null,null,null,null,null,"Maskinongé",null,null,null,0]
[null,null,null,null,null,"Maskinongé",null,null,null,{"$f":"SUMIF(K51:W51,\"<>\",$K$6:$W$6)","v":0}]
[null,null,null,null,null,"Maskinongé",null,null,null,0]
[null,null,null,null,null,"Maskinongé",null,null,null,0]
[null,null,null,null,null,"Maskinongé",null,null,null,0]
[null,null,null,null,null,"Maskinongé",null,null,null,0]
[null,null,null,null,null,"Maskinongé",null,null,null,0]
[null,null,null,null,null,"Maskinongé",null,null,null,0]
[null,null,null,null,null,"Maskinongé",null,null,null,0]
[null,null,null,null,null,"Maskinongé",null,null,null,0]
[null,null,null,null,null,"Maskinongé",null,null,null,0]
[null,null,null,null,null,"Maskinongé",null,null,null,0]
[null,null,null,null,null,"Maskinongé",null,null,null,0]
[null,null,null,null,null,"Maskinongé",null,null,null,0]
[null,null,null,null,null,"Maskinongé",null,null,null,0]
[null,null,null,null,null,"Maskinongé",null,null,null,0]
[null,null,null,null,null,"Maskinongé",null,null,null,0]
[null,null,null,null,null,"Maskinongé",null,null,null,0]
[null,null,null,null,null,"Maskinongé",null,null,null,0]
[null,null,null,null,null,"Maskinongé",null,null,null,0]
[null,null,null,null,null,"Maskinongé",null,null,null,0]
[null,null,null,null,null,"Maskinongé",null,null,null,0]
[null,null,null,null,null,"Maskinongé",null,null,null,0]
[null,null,null,null,null,"Maskinongé",null,null,null,0]
[null,null,null,null,null,"Maskinongé",null,null,null,0]
[null,null,null,null,null,"Maskinongé",null,null,null,0]
[null,null,null,null,null,"Maskinongé",null,null,null,0]
[null,null,null,null,null,"Maskinongé",null,null,null,0]
[null,null,null,null,null,"Maskinongé",null,null,null,0]
[null,null,null,null,null,"Maskinongé",null,null,null,0]
[null,null,null,null,null,"Maskinongé",null,null,null,0]
[null,null,null,null,null,"Maskinongé",null,null,null,0]
[null,null,null,null,null,"Maskinongé",null,null,null,0]
[null,null,null,null,null,"Maskinongé",null,null,null,{"$f":"SUMIF(K83:W83,\"<>\",$K$6:$W$6)","v":0}]
[null,null,null,null,null,"Maskinongé",null,null,null,0]
[null,null,null,null,null,"Maskinongé",null,null,null,0]
[null,null,null,null,null,"Maskinongé",null,null,null,0]
[null,null,null,null,null,"Maskinongé",null,null,null,0]
[null,null,null,null,null,"Maskinongé",null,null,null,0]
[null,null,null,null,null,"Maskinongé",null,null,null,0]
[null,null,null,null,null,"Maskinongé",null,null,null,0]
[null,null,null,null,null,"Maskinongé",null,null,null,0]
[null,null,null,null,null,"Maskinongé",null,null,null,0]
[null,null,null,null,null,"Maskinongé",null,null,null,0]
[null,null,null,null,null,"Maskinongé",null,null,null,0]
[null,null,null,null,null,"Maskinongé",null,null,null,0]
[null,null,null,null,null,"Maskinongé",null,null,null,0]
[null,null,null,null,null,"Maskinongé",null,null,null,0]
[null,null,null,null,null,"Maskinongé",null,null,null,0]
[null,null,null,null,null,"Maskinongé",null,null,null,{"$f":"SUMIF(K99:W99,\"<>\",$K$6:$W$6)","v":0}]
[null,null,null,null,null,"Maskinongé",null,null,null,0]
[null,null,null,null,null,"Maskinongé",null,null,null,0]
[null,null,null,null,null,"Maskinongé",null,null,null,0]
[null,null,null,null,null,"Maskinongé",null,null,null,0]
[null,null,null,null,null,"Maskinongé",null,null,null,0]
[null,null,null,null,null,"Maskinongé",null,null,null,0]
[null,null,null,null,null,"Maskinongé",null,null,null,0]
[null,null,null,null,null,"Maskinongé",null,null,null,0]
[null,null,null,null,null,"Maskinongé",null,null,null,0]
[null,null,null,null,null,"Maskinongé",null,null,null,0]
[null,null,null,null,null,"Maskinongé",null,null,null,0]
[null,null,null,null,null,"Maskinongé",null,null,null,0]
[null,null,null,null,null,"Maskinongé",null,null,null,0]
[null,null,null,null,null,"Maskinongé",null,null,null,0]
[null,null,null,null,null,"Maskinongé",null,null,null,0]
[null,null,null,null,null,"Maskinongé",null,null,null,0]
[null,null,null,null,null,"Maskinongé",null,null,null,0]
[null,null,null,null,null,"Maskinongé",null,null,null,0]
[null,null,null,null,null,"Maskinongé",null,null,null,0]
[null,null,null,null,null,"Maskinongé",null,null,null,0]
[null,null,null,null,null,"Maskinongé",null,null,null,0]
[null,null,null,null,null,"Maskinongé",null,null,null,0]
[null,null,null,null,null,"Maskinongé",null,null,null,0]
[null,null,null,null,null,"Maskinongé",null,null,null,0]
[null,null,null,null,null,"Maskinongé",null,null,null,0]
[null,null,null,null,null,"Maskinongé",null,null,null,0]
[null,null,null,null,null,"Maskinongé",null,null,null,0]
[null,null,null,null,null,"Maskinongé",null,null,null,0]
[null,null,null,null,null,"Maskinongé",null,null,null,0]
[null,null,null,null,null,"Maskinongé",null,null,null,0]
[null,null,null,null,null,"Maskinongé",null,null,null,0]
[null,null,null,null,null,"Maskinongé",null,null,null,0]
[null,null,null,null,null,"Maskinongé",null,null,null,0]
[null,null,null,null,null,"Maskinongé",null,null,null,0]
[null,null,null,null,null,"Maskinongé",null,null,null,0]
[null,null,null,null,null,"Maskinongé",null,null,null,0]
[null,null,null,null,null,"Maskinongé",null,null,null,{"$f":"SUMIF(K136:W136,\"<>\",$K$6:$W$6)","v":0}]
[null,null,null,null,null,"Maskinongé",null,null,null,0]
[null,null,null,null,null,"Maskinongé",null,null,null,0]
[null,null,null,null,null,"Maskinongé",null,null,null,0]
[null,null,null,null,null,"Maskinongé",null,null,null,0]
[null,null,null,null,null,"Maskinongé",null,null,null,0]
[null,null,null,null,null,"Maskinongé",null,null,null,0]
[null,null,null,null,null,"Maskinongé",null,null,null,0]
[null,null,null,null,null,"Maskinongé",null,null,null,0]
[null,null,null,null,null,"Maskinongé",null,null,null,0]
[null,null,null,null,null,"Maskinongé",null,null,null,0]
[null,null,null,null,null,"Maskinongé",null,null,null,0]
[null,null,null,null,null,"Maskinongé",null,null,null,0]
[null,null,null,null,null,"Maskinongé",null,null,null,0]
[null,null,null,null,null,"Maskinongé",null,null,null,0]
[null,null,null,null,null,"Maskinongé",null,null,null,0]
[null,null,null,null,null,"Maskinongé",null,null,null,0]
[null,null,null,null,null,"Maskinongé",null,null,null,0]
[null,null,null,null,null,"Maskinongé",null,null,null,0]
[null,null,null,null,null,"Maskinongé",null,null,null,0]
[null,null,null,null,null,"Maskinongé",null,null,null,0]
[null,null,null,null,null,"Maskinongé",null,null,null,0]
[null,null,null,null,null,"Maskinongé",null,null,null,0]
[null,null,null,null,null,"Maskinongé",null,null,null,0]
[null,null,null,null,null,"Maskinongé",null,null,null,0]
[null,null,null,null,null,"Maskinongé",null,null,null,0]
[null,null,null,null,null,"Maskinongé",null,null,null,0]
[null,null,null,null,null,"Maskinongé",null,null,null,0]
[null,null,null,null,null,"Maskinongé",null,null,null,0]
[null,null,null,null,null,"Maskinongé",null,null,null,0]
[null,null,null,null,null,"Maskinongé",null,null,null,0]
[null,null,null,null,null,"Maskinongé",null,null,null,0]
[null,null,null,null,null,"Maskinongé",null,null,null,0]
[null,null,null,null,null,"Maskinongé",null,null,null,0]
[null,null,null,null,null,"Maskinongé",null,null,null,0]
[null,null,null,null,null,"Maskinongé",null,null,null,0]
[null,null,null,null,null,"Maskinongé",null,null,null,0]
[null,null,null,null,null,"Maskinongé",null,null,null,0]
[null,null,null,null,null,"Maskinongé",null,null,null,0]
[null,null,null,null,null,"Maskinongé",null,null,null,0]
[null,null,null,null,null,"Maskinongé",null,null,null,0]
[null,null,null,null,null,"Maskinongé",null,null,null,0]
[null,null,null,null,null,"Maskinongé",null,null,null,0]
[null,null,null,null,null,"Maskinongé",null,null,null,0]
[null,null,null,null,null,"Maskinongé",null,null,null,0]
[null,null,null,null,null,"Maskinongé",null,null,null,0]
[null,null,null,null,null,"Maskinongé",null,null,null,0]
[null,null,null,null,null,"Maskinongé",null,null,null,0]
[null,null,null,null,null,"Maskinongé",null,null,null,0]
[null,null,null,null,null,"Maskinongé",null,null,null,0]
[null,null,null,null,null,"Maskinongé",null,null,null,0]
[null,null,null,null,null,"Maskinongé",null,null,null,0]
[null,null,null,null,null,"Maskinongé",null,null,null,0]
[null,null,null,null,null,"Maskinongé",null,null,null,0]
[null,null,null,null,null,"Maskinongé",null,null,null,0]
[null,null,null,null,null,"Maskinongé",null,null,null,0]
[null,null,null,null,null,"Maskinongé",null,null,null,0]
[null,null,null,null,null,"Maskinongé",null,null,null,0]
[null,null,null,null,null,"Maskinongé",null,null,null,0]
[null,null,null,null,null,"Maskinongé",null,null,null,0]
[null,null,null,null,null,"Maskinongé",null,null,null,0]
[null,null,null,null,null,"Maskinongé",null,null,null,0]
[null,null,null,null,null,"Maskinongé",null,null,null,0]
[null,null,null,null,null,"Maskinongé",null,null,null,0]
[null,null,null,null,null,"Maskinongé",null,null,null,{"$f":"SUMIF(K200:W200,\"<>\",$K$6:$W$6)","v":0}]
[null,null,null,null,null,"Maskinongé",null,null,null,0]
[null,null,null,null,null,"Maskinongé",null,null,null,0]
[null,null,null,null,null,"Maskinongé",null,null,null,0]
[null,null,null,null,null,"Maskinongé",null,null,null,0]
[null,null,null,null,null,"Maskinongé",null,null,null,0]
[null,null,null,null,null,"Maskinongé",null,null,null,0]
[null,null,null,null,null,"Maskinongé",null,null,null,0]
[null,null,null,null,null,"Maskinongé",null,null,null,0]

{"sheet":"Activités Shawi","index":3,"n_rows":483,"n_cols":22,"rows_kept":483,"cut":false,"hidden":false,"merged":[[2,6,6,6],[0,10,0,21],[1,10,1,12],[0,0,1,8],[2,0,6,0],[2,8,6,8],[1,13,1,16],[1,17,1,18],[1,19,1,20],[2,9,6,9],[2,7,6,7],[2,1,6,1],[2,2,6,2],[2,3,6,3],[2,4,6,4],[2,5,6,5]]}
["Coordonnées des participants",null,null,null,null,null,null,null,null,null,"Cours offerts à Shawinigan "]
[null,null,null,null,null,null,null,null,null,null,{"$f":"'Recensement cours'!C40","v":"HOP "},null,null,{"$f":"'Recensement cours'!C33","v":"C. ADM"},null,null,null,"LAFLÈCHE",null,"CLSC",null,"Autres"]
["Date de réception","# Employé","Nom","Prénom","Téléphone","Shawinigan","Courriel","Commentaires","Paiement                       reçu ou                   en attente","Montant payé",{"$f":"'Recensement cours'!F40","v":"TABATA"},{"$f":"'Recensement cours'!F41","v":"TABATA"},{"$f":"'Recensement cours'!F42","v":0},{"$f":"'Recensement cours'!F32","v":"TABATA"},{"$f":"'Recensement cours'!F33","v":"TABATA"},{"$f":"'Recensement cours'!F34","v":"TABATA"},{"$f":"'Recensement cours'!F35","v":0},{"$f":"'Recensement cours'!F36","v":"Programmes variés : Tabata, Bootcamp, Insanity"},{"$f":"'Recensement cours'!F37","v":0},{"$f":"'Recensement cours'!F38","v":"Pound"},{"$f":"'Recensement cours'!F39","v":0},{"$f":"'Recensement cours'!F43","v":"Flexi carte Shawinigan"}]
[null,null,null,null,null,null,null,null,null,null,{"$f":"'Recensement cours'!G40","v":"Lundi et mardi 12 h 5"},{"$f":"'Recensement cours'!G41","v":"Mardi 16 h 10"},{"$f":"'Recensement cours'!G42","v":0},{"$f":"'Recensement cours'!G32","v":"Lundi 12 h 5"},{"$f":"'Recensement cours'!G33","v":"Lundi 16 h 10"},{"$f":"'Recensement cours'!G34","v":"Mercredi 12 h 5"},{"$f":"'Recensement cours'!G35","v":0},{"$f":"'Recensement cours'!G36","v":"Mercredi pm"},{"$f":"'Recensement cours'!G37","v":0},{"$f":"'Recensement cours'!G38","v":"Jeudi midi"},{"$f":"'Recensement cours'!G39","v":0},{"$f":"'Recensement cours'!G43","v":"Horaire varié"}]
[null,null,null,null,null,null,null,null,null,null,{"$f":"'Recensement cours'!H40","v":"dfafsafs"},{"$f":"'Recensement cours'!H41","v":"fdafasfsaw"},{"$f":"'Recensement cours'!H42","v":0},{"$f":"'Recensement cours'!H32","v":"ffadafsdfdà"},{"$f":"'Recensement cours'!H33","v":"ffadfsafas"},{"$f":"'Recensement cours'!H34","v":"fasdfasfasde"},{"$f":"'Recensement cours'!H35","v":0},{"$f":"'Recensement cours'!H36","v":0},{"$f":"'Recensement cours'!H37","v":0},{"$f":"'Recensement cours'!H38","v":0},{"$f":"'Recensement cours'!H39","v":0},{"$f":"'Recensement cours'!H43","v":0}]
[null,null,null,null,null,null,null,null,null,null,{"$f":"'Recensement cours'!I40","v":3},{"$f":"'Recensement cours'!I41","v":2},{"$f":"'Recensement cours'!I42","v":0},{"$f":"'Recensement cours'!I32","v":2},{"$f":"'Recensement cours'!I33","v":3},{"$f":"'Recensement cours'!I34","v":2},{"$f":"'Recensement cours'!I35","v":0},{"$f":"'Recensement cours'!I36","v":0},{"$f":"'Recensement cours'!I37","v":0},{"$f":"'Recensement cours'!I38","v":0},{"$f":"'Recensement cours'!I39","v":0},{"$f":"'Recensement cours'!I43","v":2}]
[null,null,null,null,null,null,null,null,null,null,{"$f":"'Recensement cours'!J40","v":0},{"$f":"'Recensement cours'!J41","v":0},{"$f":"'Recensement cours'!J42","v":0},{"$f":"'Recensement cours'!J32","v":0},{"$f":"'Recensement cours'!J33","v":0},{"$f":"'Recensement cours'!J34","v":0},{"$f":"'Recensement cours'!J35","v":0},{"$f":"'Recensement cours'!J36","v":0},{"$f":"'Recensement cours'!J37","v":0},{"$f":"'Recensement cours'!J38","v":0},{"$f":"'Recensement cours'!J39","v":0},{"$f":"'Recensement cours'!J43","v":0}]
["2018-08-30",2555,"Auger","Guylaine",8195555555,"Shawinigan",null,null,"Non en attente",-2,null,"x"]
["2018-08-30",66666,"Bellavance","Sonia",8196666666,"Shawinigan","marie-fay.baril@ssss.gouv.qc.ca","avisée que cours débute","Oui chèque",{"$f":"SUMIF(K9:T9,\"<>\",$K$6:$T$6)","v":3},null,null,null,null,"x"]
["2018-08-30",65,"Blanchette","Martine",8197777777,"Shawinigan","dommax@live.ca","avisée que cours débute","Oui chèque",2,null,"x"]
["2018-09-02",22222,"Brousseau","Martine",8198888888,"Shawinigan","Jessica_Bedard_Energie@ssss.gouv.qc.ca","avisée que cours débute","Oui chèque",2,null,null,null,"x"]
["2018-08-30",65,"Carignan","Véronique",8199999999,"Shawinigan","blaisa@uqtr.ca","avisée que cours débute","Oui chèque",2,null,null,null,"x"]
["2018-08-30",555555,"Constant","Carole",8201111110,"Shawinigan","vicky_chamberland_7@hotmail.com","avisée que cours débute","Oui chèque",4,null,null,null,"x",null,"x"]
["2018-08-30",322682,"Côté","Maggy",8202222221,"Shawinigan","mary_chretien@hotmail.com","avisée que cours débute","Oui chèque",2,null,null,null,"x"]
["2018-08-30",88,"Dolan","Valérie",8203333332,"Shawinigan","sandracote71@hotmail.com","avisée que cours débute","Oui chèque",2,null,"x"]
["2018-09-02",886565,"Fortin","Marie-Eve",8204444443,"Shawinigan","carole_dagenais@ssss.gouv.qc.ca","avisée que cours débute","Oui chèque",3,null,null,null,null,"x"]
["2018-09-11",212121,"Gervais","Sara-Pier",8205555554,"Shawinigan",null,null,"Non en attente",-2,null,"x"]
["2018-09-11",21212121,"Gouin","Nathalie",8206666665,"Shawinigan","emelie14_valoisss3@hotmail.com","avisée que cours débute","Oui chèque",2,null,"x"]
["2018-08-30",300616,"caron","Jacqueline",8207777776,"Shawinigan","marie-eve_doucet_energie@ssss.gouv.qc.ca","avisée que cours débute","Oui chèque",4,null,null,null,"x",null,"x"]
["2018-08-30",5454545,"Leclerc","Karine",8208888887,"Shawinigan","Allison.Gagnon@ssss.gouv.qc.ca","avisée que cours débute","Oui chèque",4,null,null,null,"x",null,"x"]
["2018-08-30",554555,"Lemay","luv",8209999998,"Shawinigan","annie_gauthier_crditedmcqiu@ssss.gouv.qc.ca","avisée que cours débute","Oui chèque",3,null,null,null,null,"x"]
["2018-09-12",222226,"Martel","william",8211111109,"Shawinigan","bebelle_2000@hotmail.com","avisée que cours débute","Oui chèque",4,null,null,null,"x",null,"x"]
["2018-08-30",24857487,"Massé","simon",8212222220,"Shawinigan","carolyne_g@hotmail.com","avisée que cours débute","Oui chèque",2,null,"x"]
["2018-09-14",14545121,"Mongrain","david",8213333331,"Shawinigan","mia_grenier@ssss.gouv.qc.ca","avisée que cours débute","Oui chèque",2,null,"x"]
["2018-08-30",54584545,"Pépin","gino",8214444442,"Shawinigan","marie-helene_hamelin_energie@ssss.gouv.qc.ca","avisée que cours débute","Oui chèque",4,null,null,null,"x",null,"x"]
["2018-08-30",545454,"Roy","melissa",8215555553,"Shawinigan","abcdef@hotmail.com","avisée que cours débute","Oui chèque",2,null,"x"]
["2018-09-11",8874878,"Roy","johanne",8216666664,"Shawinigan","addtggr@hotmail.comà","avisée que cours débute","Oui chèque",3,null,null,null,null,"x"]
["2018-09-11",888,"Tremblay","tania",8217777775,"Shawinigan","abcdef@hotmail.com","avisée que cours débute","Oui chèque",2,null,null,null,null,null,"x"]
["2018-08-30",2555,"Auger","Guylaine",8195555555,"Shawinigan","addtggr@hotmail.comà","annule inscription car pas cours lundi midi","Oui chèque",0]
["2018-08-30",66666,"Bellavance","Sonia",8196666666,"Shawinigan","abcdef@hotmail.com","avisée que cours débute","Oui chèque",4,null,null,null,"x",null,"x"]
["2018-08-30",65,"Blanchette","Martine",8197777777,"Shawinigan","addtggr@hotmail.comà","avisée que cours débute","Oui chèque",5,null,null,null,null,"x","x"]
["2018-09-02",22222,"Brousseau","Martine",8198888888,"Shawinigan","abcdef@hotmail.com","avisée que cours débute","Oui chèque",3,null,null,null,null,"x"]
["2018-08-30",65,"Carignan","Véronique",8199999999,"Shawinigan","addtggr@hotmail.comà","avisée que cours débute","Oui chèque",3,null,null,null,null,"x"]
["2018-08-30",555555,"Constant","Carole",8201111110,"Shawinigan","abcdef@hotmail.com","avisée que cours débute","Oui chèque",3,null,null,null,null,"x"]
["2018-08-30",322682,"Côté","Maggy",8202222221,"Shawinigan","addtggr@hotmail.comà","avisée que cours débute","Oui chèque",2,null,"x"]
["2018-08-30",88,"Dolan","Valérie",8203333332,"Shawinigan","abcdef@hotmail.com",null,"Oui chèque",4,null,"x",null,"x"]
["2018-09-02",886565,"Fortin","Marie-Eve",8204444443,"Shawinigan","addtggr@hotmail.comà",null,"Oui chèque",2,null,null,null,"x"]
["2018-09-11",212121,"Gervais","Sara-Pier",8205555554,"Shawinigan","abcdef@hotmail.com",null,"Oui chèque",2,null,null,null,"x"]
["2018-09-11",21212121,"Gouin","Nathalie",8206666665,"Shawinigan","addtggr@hotmail.comà",null,"Oui chèque",2,null,"x"]
["2018-08-30",300616,"caron","Jacqueline",8207777776,"Shawinigan","abcdef@hotmail.com",null,"Oui chèque",{"$f":"SUMIF(K40:T40,\"<>\",$K$6:$T$6)","v":4},null,"x",null,"x"]
["2018-08-30",5454545,"Leclerc","Karine",8208888887,"Shawinigan","addtggr@hotmail.comà",null,"Oui chèque",2,null,null,null,"x"]
["2018-08-30",554555,"Lemay","luv",8209999998,"Shawinigan","abcdef@hotmail.com",null,"Oui chèque",2,null,null,null,"x"]
["2018-09-12",222226,"Martel","william",8211111109,"Shawinigan","addtggr@hotmail.comà",null,"Oui chèque",2,null,"x"]
["2018-08-30",24857487,"Massé","simon",8212222220,"Shawinigan","abcdef@hotmail.com",null,"Oui chèque",4,null,"x",null,"x"]
["2018-09-14",14545121,"Mongrain","david",8213333331,"Shawinigan","addtggr@hotmail.comà",null,"Oui chèque",2,null,null,null,"x"]
["2018-08-30",54584545,"Pépin","gino",8214444442,"Shawinigan","abcdef@hotmail.com",null,"Oui chèque",2,null,null,null,"x"]
["2018-08-30",545454,"Roy","melissa",8215555553,"Shawinigan",null,null,null,0]
["2018-09-11",8874878,"Roy","johanne",8216666664,"Shawinigan",null,null,null,0]
["2018-09-11",888,"Tremblay","tania",8217777775,"Shawinigan",null,null,null,0]
[null,null,null,null,null,"Shawinigan",null,null,null,0]
[null,null,null,null,null,"Shawinigan",null,null,null,0]
[null,null,null,null,null,"Shawinigan",null,null,null,0]
[null,null,null,null,null,"Shawinigan",null,null,null,0]
[null,null,null,null,null,"Shawinigan",null,null,null,0]
[null,null,null,null,null,"Shawinigan",null,null,null,0]
[null,null,null,null,null,"Shawinigan",null,null,null,0]
[null,null,null,null,null,"Shawinigan",null,null,null,0]
[null,null,null,null,null,"Shawinigan",null,null,null,0]
[null,null,null,null,null,"Shawinigan",null,null,null,0]
[null,null,null,null,null,"Shawinigan",null,null,null,0]
[null,null,null,null,null,"Shawinigan",null,null,null,0]
[null,null,null,null,null,"Shawinigan",null,null,null,0]
[null,null,null,null,null,"Shawinigan",null,null,null,0]
[null,null,null,null,null,"Shawinigan",null,null,null,0]
[null,null,null,null,null,"Shawinigan",null,null,null,0]
[null,null,null,null,null,"Shawinigan",null,null,null,0]
[null,null,null,null,null,"Shawinigan",null,null,null,0]
[null,null,null,null,null,"Shawinigan",null,null,null,0]
[null,null,null,null,null,"Shawinigan",null,null,null,0]
[null,null,null,null,null,"Shawinigan",null,null,null,0]
[null,null,null,null,null,"Shawinigan",null,null,null,0]
[null,null,null,null,null,"Shawinigan",null,null,null,{"$f":"SUMIF(K72:T72,\"<>\",$K$6:$T$6)","v":0}]
[null,null,null,null,null,"Shawinigan",null,null,null,0]
[null,null,null,null,null,"Shawinigan",null,null,null,0]
[null,null,null,null,null,"Shawinigan",null,null,null,0]
[null,null,null,null,null,"Shawinigan",null,null,null,0]
[null,null,null,null,null,"Shawinigan",null,null,null,0]
[null,null,null,null,null,"Shawinigan",null,null,null,0]
[null,null,null,null,null,"Shawinigan",null,null,null,0]
[null,null,null,null,null,"Shawinigan",null,null,null,0]
[null,null,null,null,null,"Shawinigan",null,null,null,0]
[null,null,null,null,null,"Shawinigan",null,null,null,0]
[null,null,null,null,null,"Shawinigan",null,null,null,0]
[null,null,null,null,null,"Shawinigan",null,null,null,0]
[null,null,null,null,null,"Shawinigan",null,null,null,0]
[null,null,null,null,null,"Shawinigan",null,null,null,0]
[null,null,null,null,null,"Shawinigan",null,null,null,0]
[null,null,null,null,null,"Shawinigan",null,null,null,0]
[null,null,null,null,null,"Shawinigan",null,null,null,0]
[null,null,null,null,null,"Shawinigan",null,null,null,0]
[null,null,null,null,null,"Shawinigan",null,null,null,0]
[null,null,null,null,null,"Shawinigan",null,null,null,0]
[null,null,null,null,null,"Shawinigan",null,null,null,0]
[null,null,null,null,null,"Shawinigan",null,null,null,0]
[null,null,null,null,null,"Shawinigan",null,null,null,0]
[null,null,null,null,null,"Shawinigan",null,null,null,0]
[null,null,null,null,null,"Shawinigan",null,null,null,0]
[null,null,null,null,null,"Shawinigan",null,null,null,0]
[null,null,null,null,null,"Shawinigan",null,null,null,0]
[null,null,null,null,null,"Shawinigan",null,null,null,0]
[null,null,null,null,null,"Shawinigan",null,null,null,0]
[null,null,null,null,null,"Shawinigan",null,null,null,0]
[null,null,null,null,null,"Shawinigan",null,null,null,0]
[null,null,null,null,null,"Shawinigan",null,null,null,{"$f":"SUMIF(K104:T104,\"<>\",$K$6:$T$6)","v":0}]
[null,null,null,null,null,"Shawinigan",null,null,null,0]
[null,null,null,null,null,"Shawinigan",null,null,null,0]
[null,null,null,null,null,"Shawinigan",null,null,null,0]
[null,null,null,null,null,"Shawinigan",null,null,null,0]
[null,null,null,null,null,"Shawinigan",null,null,null,0]
[null,null,null,null,null,"Shawinigan",null,null,null,0]
[null,null,null,null,null,"Shawinigan",null,null,null,0]
[null,null,null,null,null,"Shawinigan",null,null,null,0]
[null,null,null,null,null,"Shawinigan",null,null,null,0]
[null,null,null,null,null,"Shawinigan",null,null,null,0]
[null,null,null,null,null,"Shawinigan",null,null,null,0]
[null,null,null,null,null,"Shawinigan",null,null,null,0]
[null,null,null,null,null,"Shawinigan",null,null,null,0]
[null,null,null,null,null,"Shawinigan",null,null,null,0]
[null,null,null,null,null,"Shawinigan",null,null,null,0]
[null,null,null,null,null,"Shawinigan",null,null,null,0]
[null,null,null,null,null,"Shawinigan",null,null,null,0]
[null,null,null,null,null,"Shawinigan",null,null,null,0]
[null,null,null,null,null,"Shawinigan",null,null,null,0]
[null,null,null,null,null,"Shawinigan",null,null,null,0]
[null,null,null,null,null,"Shawinigan",null,null,null,0]
[null,null,null,null,null,"Shawinigan",null,null,null,0]
[null,null,null,null,null,"Shawinigan",null,null,null,0]
[null,null,null,null,null,"Shawinigan",null,null,null,0]
[null,null,null,null,null,"Shawinigan",null,null,null,0]
[null,null,null,null,null,"Shawinigan",null,null,null,0]
[null,null,null,null,null,"Shawinigan",null,null,null,0]
[null,null,null,null,null,"Shawinigan",null,null,null,0]
[null,null,null,null,null,"Shawinigan",null,null,null,0]
[null,null,null,null,null,"Shawinigan",null,null,null,0]
[null,null,null,null,null,"Shawinigan",null,null,null,0]
[null,null,null,null,null,"Shawinigan",null,null,null,{"$f":"SUMIF(K136:T136,\"<>\",$K$6:$T$6)","v":0}]
[null,null,null,null,null,"Shawinigan",null,null,null,0]
[null,null,null,null,null,"Shawinigan",null,null,null,0]
[null,null,null,null,null,"Shawinigan",null,null,null,0]
[null,null,null,null,null,"Shawinigan",null,null,null,0]
[null,null,null,null,null,"Shawinigan",null,null,null,0]
[null,null,null,null,null,"Shawinigan",null,null,null,0]
[null,null,null,null,null,"Shawinigan",null,null,null,0]
[null,null,null,null,null,"Shawinigan",null,null,null,0]
[null,null,null,null,null,"Shawinigan",null,null,null,0]
[null,null,null,null,null,"Shawinigan",null,null,null,0]
[null,null,null,null,null,"Shawinigan",null,null,null,0]
[null,null,null,null,null,"Shawinigan",null,null,null,0]
[null,null,null,null,null,"Shawinigan",null,null,null,0]
[null,null,null,null,null,"Shawinigan",null,null,null,0]
[null,null,null,null,null,"Shawinigan",null,null,null,0]
[null,null,null,null,null,"Shawinigan",null,null,null,0]
[null,null,null,null,null,"Shawinigan",null,null,null,0]
[null,null,null,null,null,"Shawinigan",null,null,null,0]
[null,null,null,null,null,"Shawinigan",null,null,null,0]
[null,null,null,null,null,"Shawinigan",null,null,null,0]
[null,null,null,null,null,"Shawinigan",null,null,null,0]
[null,null,null,null,null,"Shawinigan",null,null,null,0]
[null,null,null,null,null,"Shawinigan",null,null,null,0]
[null,null,null,null,null,"Shawinigan",null,null,null,0]
[null,null,null,null,null,"Shawinigan",null,null,null,0]
[null,null,null,null,null,"Shawinigan",null,null,null,0]
[null,null,null,null,null,"Shawinigan",null,null,null,0]
[null,null,null,null,null,"Shawinigan",null,null,null,0]
[null,null,null,null,null,"Shawinigan",null,null,null,0]
[null,null,null,null,null,"Shawinigan",null,null,null,0]
[null,null,null,null,null,"Shawinigan",null,null,null,0]
[null,null,null,null,null,"Shawinigan",null,null,null,0]
[null,null,null,null,null,"Shawinigan",null,null,null,0]
[null,null,null,null,null,"Shawinigan",null,null,null,0]
[null,null,null,null,null,"Shawinigan",null,null,null,0]
[null,null,null,null,null,"Shawinigan",null,null,null,0]
[null,null,null,null,null,"Shawinigan",null,null,null,0]
[null,null,null,null,null,"Shawinigan",null,null,null,0]
[null,null,null,null,null,"Shawinigan",null,null,null,0]
[null,null,null,null,null,"Shawinigan",null,null,null,0]
[null,null,null,null,null,"Shawinigan",null,null,null,0]
[null,null,null,null,null,"Shawinigan",null,null,null,0]
[null,null,null,null,null,"Shawinigan",null,null,null,0]
[null,null,null,null,null,"Shawinigan",null,null,null,0]
[null,null,null,null,null,"Shawinigan",null,null,null,0]
[null,null,null,null,null,"Shawinigan",null,null,null,0]
[null,null,null,null,null,"Shawinigan",null,null,null,0]
[null,null,null,null,null,"Shawinigan",null,null,null,0]
[null,null,null,null,null,"Shawinigan",null,null,null,0]
[null,null,null,null,null,"Shawinigan",null,null,null,0]
[null,null,null,null,null,"Shawinigan",null,null,null,0]
[null,null,null,null,null,"Shawinigan",null,null,null,0]
[null,null,null,null,null,"Shawinigan",null,null,null,0]
[null,null,null,null,null,"Shawinigan",null,null,null,0]
[null,null,null,null,null,"Shawinigan",null,null,null,0]
[null,null,null,null,null,"Shawinigan",null,null,null,0]
[null,null,null,null,null,"Shawinigan",null,null,null,0]
[null,null,null,null,null,"Shawinigan",null,null,null,0]
[null,null,null,null,null,"Shawinigan",null,null,null,0]
[null,null,null,null,null,"Shawinigan",null,null,null,0]
[null,null,null,null,null,"Shawinigan",null,null,null,0]
[null,null,null,null,null,"Shawinigan",null,null,null,0]
[null,null,null,null,null,"Shawinigan",null,null,null,0]
[null,null,null,null,null,"Shawinigan",null,null,null,{"$f":"SUMIF(K200:T200,\"<>\",$K$6:$T$6)","v":0}]
[null,null,null,null,null,"Shawinigan",null,null,null,0]
[null,null,null,null,null,"Shawinigan",null,null,null,0]
[null,null,null,null,null,"Shawinigan",null,null,null,0]
[null,null,null,null,null,"Shawinigan",null,null,null,0]
[null,null,null,null,null,"Shawinigan",null,null,null,0]
[null,null,null,null,null,"Shawinigan",null,null,null,0]
[null,null,null,null,null,"Shawinigan",null,null,null,0]
[null,null,null,null,null,"Shawinigan",null,null,null,0]
[null,null,null,null,null,"Shawinigan",null,null,null,0]
[null,null,null,null,null,"Shawinigan",null,null,null,0]
[null,null,null,null,null,"Shawinigan",null,null,null,0]
[null,null,null,null,null,"Shawinigan",null,null,null,0]
[null,null,null,null,null,"Shawinigan",null,null,null,0]
[null,null,null,null,null,"Shawinigan",null,null,null,0]
[null,null,null,null,null,"Shawinigan",null,null,null,0]
[null,null,null,null,null,"Shawinigan",null,null,null,0]
[null,null,null,null,null,"Shawinigan",null,null,null,0]
[null,null,null,null,null,"Shawinigan",null,null,null,0]
[null,null,null,null,null,"Shawinigan",null,null,null,0]
[null,null,null,null,null,"Shawinigan",null,null,null,0]
[null,null,null,null,null,"Shawinigan",null,null,null,0]
[null,null,null,null,null,"Shawinigan",null,null,null,0]
[null,null,null,null,null,"Shawinigan",null,null,null,0]
[null,null,null,null,null,"Shawinigan",null,null,null,0]
[null,null,null,null,null,"Shawinigan",null,null,null,0]
[null,null,null,null,null,"Shawinigan",null,null,null,0]
[null,null,null,null,null,"Shawinigan",null,null,null,0]
[null,null,null,null,null,"Shawinigan",null,null,null,0]
[null,null,null,null,null,"Shawinigan",null,null,null,0]
[null,null,null,null,null,"Shawinigan",null,null,null,0]
[null,null,null,null,null,"Shawinigan",null,null,null,0]
[null,null,null,null,null,"Shawinigan",null,null,null,0]
[null,null,null,null,null,"Shawinigan",null,null,null,0]
[null,null,null,null,null,"Shawinigan",null,null,null,0]
[null,null,null,null,null,"Shawinigan",null,null,null,0]
[null,null,null,null,null,"Shawinigan",null,null,null,0]
[null,null,null,null,null,"Shawinigan",null,null,null,0]
[null,null,null,null,null,"Shawinigan",null,null,null,0]
[null,null,null,null,null,"Shawinigan",null,null,null,0]
[null,null,null,null,null,"Shawinigan",null,null,null,0]
[null,null,null,null,null,"Shawinigan",null,null,null,0]
[null,null,null,null,null,"Shawinigan",null,null,null,0]
[null,null,null,null,null,"Shawinigan",null,null,null,0]
[null,null,null,null,null,"Shawinigan",null,null,null,0]
[null,null,null,null,null,"Shawinigan",null,null,null,0]
[null,null,null,null,null,"Shawinigan",null,null,null,0]
[null,null,null,null,null,"Shawinigan",null,null,null,0]
[null,null,null,null,null,"Shawinigan",null,null,null,0]
[null,null,null,null,null,"Shawinigan",null,null,null,0]
[null,null,null,null,null,"Shawinigan",null,null,null,0]
[null,null,null,null,null,"Shawinigan",null,null,null,0]
[null,null,null,null,null,"Shawinigan",null,null,null,0]
[null,null,null,null,null,"Shawinigan",null,null,null,0]
[null,null,null,null,null,"Shawinigan",null,null,null,0]
[null,null,null,null,null,"Shawinigan",null,null,null,0]
[null,null,null,null,null,"Shawinigan",null,null,null,0]
[null,null,null,null,null,"Shawinigan",null,null,null,0]
[null,null,null,null,null,"Shawinigan",null,null,null,0]
[null,null,null,null,null,"Shawinigan",null,null,null,0]
[null,null,null,null,null,"Shawinigan",null,null,null,0]
[null,null,null,null,null,"Shawinigan",null,null,null,0]
[null,null,null,null,null,"Shawinigan",null,null,null,0]
[null,null,null,null,null,"Shawinigan",null,null,null,0]
[null,null,null,null,null,"Shawinigan",null,null,null,{"$f":"SUMIF(K264:T264,\"<>\",$K$6:$T$6)","v":0}]
[null,null,null,null,null,"Shawinigan",null,null,null,0]
[null,null,null,null,null,"Shawinigan",null,null,null,0]
[null,null,null,null,null,"Shawinigan",null,null,null,0]
[null,null,null,null,null,"Shawinigan",null,null,null,0]
[null,null,null,null,null,"Shawinigan",null,null,null,0]
[null,null,null,null,null,"Shawinigan",null,null,null,0]
[null,null,null,null,null,"Shawinigan",null,null,null,0]
[null,null,null,null,null,"Shawinigan",null,null,null,0]
[null,null,null,null,null,"Shawinigan",null,null,null,0]
[null,null,null,null,null,"Shawinigan",null,null,null,0]
[null,null,null,null,null,"Shawinigan",null,null,null,0]
[null,null,null,null,null,"Shawinigan",null,null,null,0]
[null,null,null,null,null,"Shawinigan",null,null,null,0]
[null,null,null,null,null,"Shawinigan",null,null,null,0]
[null,null,null,null,null,"Shawinigan",null,null,null,0]
[null,null,null,null,null,"Shawinigan",null,null,null,0]
[null,null,null,null,null,"Shawinigan",null,null,null,0]
[null,null,null,null,null,"Shawinigan",null,null,null,0]
[null,null,null,null,null,"Shawinigan",null,null,null,0]
[null,null,null,null,null,"Shawinigan",null,null,null,0]
[null,null,null,null,null,"Shawinigan",null,null,null,0]
[null,null,null,null,null,"Shawinigan",null,null,null,0]
[null,null,null,null,null,"Shawinigan",null,null,null,0]
[null,null,null,null,null,"Shawinigan",null,null,null,0]
[null,null,null,null,null,"Shawinigan",null,null,null,0]
[null,null,null,null,null,"Shawinigan",null,null,null,0]
[null,null,null,null,null,"Shawinigan",null,null,null,0]
[null,null,null,null,null,"Shawinigan",null,null,null,0]
[null,null,null,null,null,"Shawinigan",null,null,null,0]
[null,null,null,null,null,"Shawinigan",null,null,null,0]
[null,null,null,null,null,"Shawinigan",null,null,null,0]
[null,null,null,null,null,"Shawinigan",null,null,null,0]
[null,null,null,null,null,"Shawinigan",null,null,null,0]
[null,null,null,null,null,"Shawinigan",null,null,null,0]
[null,null,null,null,null,"Shawinigan",null,null,null,0]
[null,null,null,null,null,"Shawinigan",null,null,null,0]
[null,null,null,null,null,"Shawinigan",null,null,null,0]
[null,null,null,null,null,"Shawinigan",null,null,null,0]
[null,null,null,null,null,"Shawinigan",null,null,null,0]
[null,null,null,null,null,"Shawinigan",null,null,null,0]
[null,null,null,null,null,"Shawinigan",null,null,null,0]
[null,null,null,null,null,"Shawinigan",null,null,null,0]
[null,null,null,null,null,"Shawinigan",null,null,null,0]
[null,null,null,null,null,"Shawinigan",null,null,null,0]
[null,null,null,null,null,"Shawinigan",null,null,null,0]
[null,null,null,null,null,"Shawinigan",null,null,null,0]
[null,null,null,null,null,"Shawinigan",null,null,null,0]
[null,null,null,null,null,"Shawinigan",null,null,null,0]
[null,null,null,null,null,"Shawinigan",null,null,null,0]
[null,null,null,null,null,"Shawinigan",null,null,null,0]
[null,null,null,null,null,"Shawinigan",null,null,null,0]
[null,null,null,null,null,"Shawinigan",null,null,null,0]
[null,null,null,null,null,"Shawinigan",null,null,null,0]
[null,null,null,null,null,"Shawinigan",null,null,null,0]
[null,null,null,null,null,"Shawinigan",null,null,null,0]
[null,null,null,null,null,"Shawinigan",null,null,null,0]
[null,null,null,null,null,"Shawinigan",null,null,null,0]
[null,null,null,null,null,"Shawinigan",null,null,null,0]
[null,null,null,null,null,"Shawinigan",null,null,null,0]
[null,null,null,null,null,"Shawinigan",null,null,null,0]
[null,null,null,null,null,"Shawinigan",null,null,null,0]
[null,null,null,null,null,"Shawinigan",null,null,null,0]
[null,null,null,null,null,"Shawinigan",null,null,null,0]
[null,null,null,null,null,"Shawinigan",null,null,null,{"$f":"SUMIF(K328:T328,\"<>\",$K$6:$T$6)","v":0}]
[null,null,null,null,null,"Shawinigan",null,null,null,0]
[null,null,null,null,null,"Shawinigan",null,null,null,0]
[null,null,null,null,null,"Shawinigan",null,null,null,0]
[null,null,null,null,null,"Shawinigan",null,null,null,0]
[null,null,null,null,null,"Shawinigan",null,null,null,0]
[null,null,null,null,null,"Shawinigan",null,null,null,0]
[null,null,null,null,null,"Shawinigan",null,null,null,0]
[null,null,null,null,null,"Shawinigan",null,null,null,0]
[null,null,null,null,null,"Shawinigan",null,null,null,0]
[null,null,null,null,null,"Shawinigan",null,null,null,0]
[null,null,null,null,null,"Shawinigan",null,null,null,0]
[null,null,null,null,null,"Shawinigan",null,null,null,0]
[null,null,null,null,null,"Shawinigan",null,null,null,0]
[null,null,null,null,null,"Shawinigan",null,null,null,0]
[null,null,null,null,null,"Shawinigan",null,null,null,0]
[null,null,null,null,null,"Shawinigan",null,null,null,0]
[null,null,null,null,null,"Shawinigan",null,null,null,0]
[null,null,null,null,null,"Shawinigan",null,null,null,0]
[null,null,null,null,null,"Shawinigan",null,null,null,0]
[null,null,null,null,null,"Shawinigan",null,null,null,0]
[null,null,null,null,null,"Shawinigan",null,null,null,0]
[null,null,null,null,null,"Shawinigan",null,null,null,0]
[null,null,null,null,null,"Shawinigan",null,null,null,0]
[null,null,null,null,null,"Shawinigan",null,null,null,0]
[null,null,null,null,null,"Shawinigan",null,null,null,0]
[null,null,null,null,null,"Shawinigan",null,null,null,0]
[null,null,null,null,null,"Shawinigan",null,null,null,0]
[null,null,null,null,null,"Shawinigan",null,null,null,0]
[null,null,null,null,null,"Shawinigan",null,null,null,0]
[null,null,null,null,null,"Shawinigan",null,null,null,0]
[null,null,null,null,null,"Shawinigan",null,null,null,0]
[null,null,null,null,null,"Shawinigan",null,null,null,0]
[null,null,null,null,null,"Shawinigan",null,null,null,0]
[null,null,null,null,null,"Shawinigan",null,null,null,0]
[null,null,null,null,null,"Shawinigan",null,null,null,0]
[null,null,null,null,null,"Shawinigan",null,null,null,0]
[null,null,null,null,null,"Shawinigan",null,null,null,0]
[null,null,null,null,null,"Shawinigan",null,null,null,0]
[null,null,null,null,null,"Shawinigan",null,null,null,0]
[null,null,null,null,null,"Shawinigan",null,null,null,0]
[null,null,null,null,null,"Shawinigan",null,null,null,0]
[null,null,null,null,null,"Shawinigan",null,null,null,0]
[null,null,null,null,null,"Shawinigan",null,null,null,0]
[null,null,null,null,null,"Shawinigan",null,null,null,0]
[null,null,null,null,null,"Shawinigan",null,null,null,0]
[null,null,null,null,null,"Shawinigan",null,null,null,0]
[null,null,null,null,null,"Shawinigan",null,null,null,0]
[null,null,null,null,null,"Shawinigan",null,null,null,0]
[null,null,null,null,null,"Shawinigan",null,null,null,0]
[null,null,null,null,null,"Shawinigan",null,null,null,0]
[null,null,null,null,null,"Shawinigan",null,null,null,0]
[null,null,null,null,null,"Shawinigan",null,null,null,0]
[null,null,null,null,null,"Shawinigan",null,null,null,0]
[null,null,null,null,null,"Shawinigan",null,null,null,0]
[null,null,null,null,null,"Shawinigan",null,null,null,0]
[null,null,null,null,null,"Shawinigan",null,null,null,0]
[null,null,null,null,null,"Shawinigan",null,null,null,0]
[null,null,null,null,null,"Shawinigan",null,null,null,0]
[null,null,null,null,null,"Shawinigan",null,null,null,0]
[null,null,null,null,null,"Shawinigan",null,null,null,0]
[null,null,null,null,null,"Shawinigan",null,null,null,0]
[null,null,null,null,null,"Shawinigan",null,null,null,0]
[null,null,null,null,null,"Shawinigan",null,null,null,0]
[null,null,null,null,null,"Shawinigan",null,null,null,{"$f":"SUMIF(K392:T392,\"<>\",$K$6:$T$6)","v":0}]
[null,null,null,null,null,"Shawinigan",null,null,null,0]
[null,null,null,null,null,"Shawinigan",null,null,null,0]
[null,null,null,null,null,"Shawinigan",null,null,null,0]
[null,null,null,null,null,"Shawinigan",null,null,null,0]
[null,null,null,null,null,"Shawinigan",null,null,null,0]
[null,null,null,null,null,"Shawinigan",null,null,null,0]
[null,null,null,null,null,"Shawinigan",null,null,null,0]
[null,null,null,null,null,"Shawinigan",null,null,null,0]
[null,null,null,null,null,"Shawinigan",null,null,null,0]
[null,null,null,null,null,"Shawinigan",null,null,null,0]
[null,null,null,null,null,"Shawinigan",null,null,null,0]
[null,null,null,null,null,"Shawinigan",null,null,null,0]
[null,null,null,null,null,"Shawinigan",null,null,null,0]
[null,null,null,null,null,"Shawinigan",null,null,null,0]
[null,null,null,null,null,"Shawinigan",null,null,null,0]
[null,null,null,null,null,"Shawinigan",null,null,null,0]
[null,null,null,null,null,"Shawinigan",null,null,null,0]
[null,null,null,null,null,"Shawinigan",null,null,null,0]
[null,null,null,null,null,"Shawinigan",null,null,null,0]
[null,null,null,null,null,"Shawinigan",null,null,null,0]
[null,null,null,null,null,"Shawinigan",null,null,null,0]
[null,null,null,null,null,"Shawinigan",null,null,null,0]
[null,null,null,null,null,"Shawinigan",null,null,null,0]
[null,null,null,null,null,"Shawinigan",null,null,null,0]
[null,null,null,null,null,"Shawinigan",null,null,null,0]
[null,null,null,null,null,"Shawinigan",null,null,null,0]
[null,null,null,null,null,"Shawinigan",null,null,null,0]
[null,null,null,null,null,"Shawinigan",null,null,null,0]
[null,null,null,null,null,"Shawinigan",null,null,null,0]
[null,null,null,null,null,"Shawinigan",null,null,null,0]
[null,null,null,null,null,"Shawinigan",null,null,null,0]
[null,null,null,null,null,"Shawinigan",null,null,null,0]
[null,null,null,null,null,"Shawinigan",null,null,null,0]
[null,null,null,null,null,"Shawinigan",null,null,null,0]
[null,null,null,null,null,"Shawinigan",null,null,null,0]
[null,null,null,null,null,"Shawinigan",null,null,null,0]
[null,null,null,null,null,"Shawinigan",null,null,null,0]
[null,null,null,null,null,"Shawinigan",null,null,null,0]
[null,null,null,null,null,"Shawinigan",null,null,null,0]
[null,null,null,null,null,"Shawinigan",null,null,null,0]
[null,null,null,null,null,"Shawinigan",null,null,null,0]
[null,null,null,null,null,"Shawinigan",null,null,null,0]
[null,null,null,null,null,"Shawinigan",null,null,null,0]
[null,null,null,null,null,"Shawinigan",null,null,null,0]
[null,null,null,null,null,"Shawinigan",null,null,null,0]
[null,null,null,null,null,"Shawinigan",null,null,null,0]
[null,null,null,null,null,"Shawinigan",null,null,null,0]
[null,null,null,null,null,"Shawinigan",null,null,null,0]
[null,null,null,null,null,"Shawinigan",null,null,null,0]
[null,null,null,null,null,"Shawinigan",null,null,null,0]
[null,null,null,null,null,"Shawinigan",null,null,null,0]
[null,null,null,null,null,"Shawinigan",null,null,null,0]
[null,null,null,null,null,"Shawinigan",null,null,null,0]
[null,null,null,null,null,"Shawinigan",null,null,null,0]
[null,null,null,null,null,"Shawinigan",null,null,null,0]
[null,null,null,null,null,"Shawinigan",null,null,null,0]
[null,null,null,null,null,"Shawinigan",null,null,null,0]
[null,null,null,null,null,"Shawinigan",null,null,null,0]
[null,null,null,null,null,"Shawinigan",null,null,null,0]
[null,null,null,null,null,"Shawinigan",null,null,null,0]
[null,null,null,null,null,"Shawinigan",null,null,null,0]
[null,null,null,null,null,"Shawinigan",null,null,null,0]
[null,null,null,null,null,"Shawinigan",null,null,null,0]
[null,null,null,null,null,"Shawinigan",null,null,null,{"$f":"SUMIF(K456:T456,\"<>\",$K$6:$T$6)","v":0}]
[null,null,null,null,null,"Shawinigan",null,null,null,0]
[null,null,null,null,null,"Shawinigan",null,null,null,0]
[null,null,null,null,null,"Shawinigan",null,null,null,0]
[null,null,null,null,null,"Shawinigan",null,null,null,0]
[null,null,null,null,null,"Shawinigan",null,null,null,0]
[null,null,null,null,null,"Shawinigan",null,null,null,0]
[null,null,null,null,null,"Shawinigan",null,null,null,0]
[null,null,null,null,null,"Shawinigan",null,null,null,0]
[null,null,null,null,null,"Shawinigan",null,null,null,0]
[null,null,null,null,null,"Shawinigan",null,null,null,0]
[null,null,null,null,null,"Shawinigan",null,null,null,0]
[null,null,null,null,null,"Shawinigan",null,null,null,0]
[null,null,null,null,null,"Shawinigan",null,null,null,0]
[null,null,null,null,null,"Shawinigan",null,null,null,0]
[null,null,null,null,null,"Shawinigan",null,null,null,0]
[null,null,null,null,null,"Shawinigan",null,null,null,0]
[null,null,null,null,null,"Shawinigan",null,null,null,0]
[null,null,null,null,null,"Shawinigan",null,null,null,0]
[null,null,null,null,null,"Shawinigan",null,null,null,0]
[null,null,null,null,null,"Shawinigan",null,null,null,0]
[null,null,null,null,null,"Shawinigan",null,null,null,0]
[null,null,null,null,null,"Shawinigan",null,null,null,0]
[null,null,null,null,null,"Shawinigan",null,null,null,0]
[null,null,null,null,null,"Shawinigan",null,null,null,0]
[null,null,null,null,null,"Shawinigan",null,null,null,0]
[null,null,null,null,null,"Shawinigan",null,null,null,0]
[null,null,null,null,null,"Shawinigan",null,null,null,0]

{"sheet":"Activités VB","index":4,"n_rows":482,"n_cols":15,"rows_kept":482,"cut":false,"hidden":false,"merged":[[0,10,0,14],[1,10,1,11],[1,12,1,13],[2,7,6,7],[2,8,6,8],[2,9,6,9],[2,3,6,3],[2,4,6,4],[2,5,6,5],[2,6,6,6],[0,0,1,8],[2,0,6,0],[2,1,6,1],[2,2,6,2]]}
["Coordonnées des participants",null,null,null,null,null,null,null,null,null,"Cours offets à Vallée-de-la-Batiscan"]
[null,null,null,null,null,null,null,null,null,null,{"$f":"'Recensement cours'!C47","v":"GENEVIEVE"},null,{"$f":"'Recensement cours'!C48","v":"TITE"},null,"Autres"]
["Date de réception","# Employé","Nom","Prénom","Téléphone","VB","Courriel","Commentaires","Paiement                       reçu ou                   en attente","Montant payé",{"$f":"'Recensement cours'!F46","v":"Yoga"},{"$f":"'Recensement cours'!F47","v":"TABATA"},{"$f":"'Recensement cours'!F48","v":"Yoga"},{"$f":"'Recensement cours'!F49","v":"TABATA"},{"$f":"'Recensement cours'!F50","v":"Flexi carte VB"}]
[null,null,null,null,null,null,null,null,null,null,{"$f":"'Recensement cours'!G46","v":"Mardi 12 h 5"},{"$f":"'Recensement cours'!G47","v":"3 ateliers 25$ un atelier 10$ chaque"},{"$f":"'Recensement cours'!G48","v":"Lundi 12 h 5"},{"$f":"'Recensement cours'!G49","v":"Jeudi 16 h 15"},{"$f":"'Recensement cours'!G50","v":"Horaire varié"}]
[null,null,null,null,null,null,null,null,null,null,{"$f":"'Recensement cours'!H46","v":"fsfdasf"},{"$f":"'Recensement cours'!H47","v":"afafasfas"},{"$f":"'Recensement cours'!H48","v":"fafasfasf"},{"$f":"'Recensement cours'!H49","v":"sfdasfasfasw"},{"$f":"'Recensement cours'!H50","v":0}]
[null,null,null,null,null,null,null,null,null,null,{"$f":"'Recensement cours'!I46","v":2},{"$f":"'Recensement cours'!I47","v":3},{"$f":"'Recensement cours'!I48","v":2},{"$f":"'Recensement cours'!I49","v":3},{"$f":"'Recensement cours'!I50","v":2}]
[null,null,null,null,null,null,null,null,null,null,{"$f":"'Recensement cours'!J46","v":0},{"$f":"'Recensement cours'!J47","v":0},{"$f":"'Recensement cours'!J48","v":0},{"$f":"'Recensement cours'!J49","v":0},{"$f":"'Recensement cours'!J50","v":0}]
["2018-08-30",322682,"Côté","mateo",8202222221,"Vallée-de-la-Batiscan","addtggr@hotmail.comà",null,"Oui chèque",{"$f":"SUMIF(K8:S8,\"<>\",$K$6:$S$6)","v":2},null,null,"x"]
["2018-08-30",88,"Dolan","charles",8203333332,"Vallée-de-la-Batiscan","abcdef@hotmail.com",null,"Oui chèque",{"$f":"SUMIF(K9:S9,\"<>\",$K$6:$S$6)","v":3},null,"x"]
["2018-09-02",886565,"Fortin","derek",8204444443,"Vallée-de-la-Batiscan","addtggr@hotmail.comà",null,"Oui chèque",{"$f":"SUMIF(K10:S10,\"<>\",$K$6:$S$6)","v":3},null,null,null,"x"]
["2018-09-11",212121,"Gervais","sylvain",8205555554,"Vallée-de-la-Batiscan","abcdef@hotmail.com",null,"Non en attente",-3,null,null,null,"x"]
["2018-09-11",21212121,"Gouin","sebastien",8206666665,"Vallée-de-la-Batiscan","addtggr@hotmail.comà",null,"Oui chèque",{"$f":"SUMIF(K12:S12,\"<>\",$K$6:$S$6)","v":2},null,null,"x"]
["2018-08-30",300616,"caron","luc",8207777776,"Vallée-de-la-Batiscan","abcdef@hotmail.com",null,"Oui chèque",3,null,"x"]
["2018-08-30",5454545,"Leclerc","steven",8208888887,"Vallée-de-la-Batiscan","addtggr@hotmail.comà",null,"Oui chèque",3,null,"x"]
["2018-08-30",554555,"Lemay","gino",8209999998,"Vallée-de-la-Batiscan","abcdef@hotmail.com",null,"Oui chèque",3,null,"x"]
["2018-09-12",222226,"Martel","ggg",8211111109,"Vallée-de-la-Batiscan","addtggr@hotmail.comà",null,"Oui chèque",3,null,null,null,"x"]
["2018-08-30",24857487,"Massé","dert",8212222220,"Vallée-de-la-Batiscan","addtggr@hotmail.comà",null,"Oui chèque",5,null,null,"x","x"]
["2018-09-14",14545121,"Mongrain","ttrfre",8213333331,"Vallée-de-la-Batiscan","abcdef@hotmail.com",null,"Oui chèque",5,null,null,"x","x"]
["2018-08-30",54584545,"Pépin","ddesw",8214444442,"Vallée-de-la-Batiscan","addtggr@hotmail.comà",null,"Oui chèque",5,null,null,"x","x"]
["2018-08-30",545454,"Roy","sdsds",8215555553,"Vallée-de-la-Batiscan","abcdef@hotmail.com",null,null,0]
["2018-09-11",8874878,"Roy","dsdf",8216666664,"Vallée-de-la-Batiscan","addtggr@hotmail.comà",null,null,0]
[null,null,null,null,null,"Vallée-de-la-Batiscan",null,null,null,0]
[null,null,null,null,null,"Vallée-de-la-Batiscan",null,null,null,0]
[null,null,null,null,null,"Vallée-de-la-Batiscan",null,null,null,0]
[null,null,null,null,null,"Vallée-de-la-Batiscan",null,null,null,{"$f":"SUMIF(K25:S25,\"<>\",$K$6:$S$6)","v":0}]
[null,null,null,null,null,"Vallée-de-la-Batiscan",null,null,null,0]
[{"$f":"COUNT(B8:B23)","v":14},null,null,null,null,"Vallée-de-la-Batiscan",null,null,null,0]
[null,null,null,null,null,"Vallée-de-la-Batiscan",null,null,null,0]
[null,null,null,null,null,"Vallée-de-la-Batiscan",null,null,null,0]
[null,null,null,null,null,"Vallée-de-la-Batiscan",null,null,null,0]
[null,null,null,null,null,"Vallée-de-la-Batiscan",null,null,null,0]
[null,null,null,null,null,"Vallée-de-la-Batiscan",null,null,null,0]
[null,null,null,null,null,"Vallée-de-la-Batiscan",null,null,null,0]
[null,null,null,null,null,"Vallée-de-la-Batiscan",null,null,null,0]
[null,null,null,null,null,"Vallée-de-la-Batiscan",null,null,null,0]
[null,null,null,null,null,"Vallée-de-la-Batiscan",null,null,null,0]
[null,null,null,null,null,"Vallée-de-la-Batiscan",null,null,null,0]
[null,null,null,null,null,"Vallée-de-la-Batiscan",null,null,null,0]
[null,null,null,null,null,"Vallée-de-la-Batiscan",null,null,null,0]
[null,null,null,null,null,"Vallée-de-la-Batiscan",null,null,null,0]
[null,null,null,null,null,"Vallée-de-la-Batiscan",null,null,null,0]
[null,null,null,null,null,"Vallée-de-la-Batiscan",null,null,null,0]
[null,null,null,null,null,"Vallée-de-la-Batiscan",null,null,null,0]
[null,null,null,null,null,"Vallée-de-la-Batiscan",null,null,null,0]
[null,null,null,null,null,"Vallée-de-la-Batiscan",null,null,null,0]
[null,null,null,null,null,"Vallée-de-la-Batiscan",null,null,null,0]
[null,null,null,null,null,"Vallée-de-la-Batiscan",null,null,null,0]
[null,null,null,null,null,"Vallée-de-la-Batiscan",null,null,null,0]
[null,null,null,null,null,"Vallée-de-la-Batiscan",null,null,null,0]
[null,null,null,null,null,"Vallée-de-la-Batiscan",null,null,null,0]
[null,null,null,null,null,"Vallée-de-la-Batiscan",null,null,null,0]
[null,null,null,null,null,"Vallée-de-la-Batiscan",null,null,null,0]
[null,null,null,null,null,"Vallée-de-la-Batiscan",null,null,null,0]
[null,null,null,null,null,"Vallée-de-la-Batiscan",null,null,null,0]
[null,null,null,null,null,"Vallée-de-la-Batiscan",null,null,null,0]
[null,null,null,null,null,"Vallée-de-la-Batiscan",null,null,null,0]
[null,null,null,null,null,"Vallée-de-la-Batiscan",null,null,null,0]
[null,null,null,null,null,"Vallée-de-la-Batiscan",null,null,null,0]
[null,null,null,null,null,"Vallée-de-la-Batiscan",null,null,null,0]
[null,null,null,null,null,"Vallée-de-la-Batiscan",null,null,null,0]
[null,null,null,null,null,"Vallée-de-la-Batiscan",null,null,null,0]
[null,null,null,null,null,"Vallée-de-la-Batiscan",null,null,null,0]
[null,null,null,null,null,"Vallée-de-la-Batiscan",null,null,null,0]
[null,null,null,null,null,"Vallée-de-la-Batiscan",null,null,null,0]
[null,null,null,null,null,"Vallée-de-la-Batiscan",null,null,null,0]
[null,null,null,null,null,"Vallée-de-la-Batiscan",null,null,null,0]
[null,null,null,null,null,"Vallée-de-la-Batiscan",null,null,null,0]
[null,null,null,null,null,"Vallée-de-la-Batiscan",null,null,null,0]
[null,null,null,null,null,"Vallée-de-la-Batiscan",null,null,null,0]
[null,null,null,null,null,"Vallée-de-la-Batiscan",null,null,null,0]
[null,null,null,null,null,"Vallée-de-la-Batiscan",null,null,null,{"$f":"SUMIF(K71:S71,\"<>\",$K$6:$S$6)","v":0}]
[null,null,null,null,null,"Vallée-de-la-Batiscan",null,null,null,0]
[null,null,null,null,null,"Vallée-de-la-Batiscan",null,null,null,0]
[null,null,null,null,null,"Vallée-de-la-Batiscan",null,null,null,0]
[null,null,null,null,null,"Vallée-de-la-Batiscan",null,null,null,0]
[null,null,null,null,null,"Vallée-de-la-Batiscan",null,null,null,0]
[null,null,null,null,null,"Vallée-de-la-Batiscan",null,null,null,0]
[null,null,null,null,null,"Vallée-de-la-Batiscan",null,null,null,0]
[null,null,null,null,null,"Vallée-de-la-Batiscan",null,null,null,0]
[null,null,null,null,null,"Vallée-de-la-Batiscan",null,null,null,0]
[null,null,null,null,null,"Vallée-de-la-Batiscan",null,null,null,0]
[null,null,null,null,null,"Vallée-de-la-Batiscan",null,null,null,0]
[null,null,null,null,null,"Vallée-de-la-Batiscan",null,null,null,0]
[null,null,null,null,null,"Vallée-de-la-Batiscan",null,null,null,0]
[null,null,null,null,null,"Vallée-de-la-Batiscan",null,null,null,0]
[null,null,null,null,null,"Vallée-de-la-Batiscan",null,null,null,0]
[null,null,null,null,null,"Vallée-de-la-Batiscan",null,null,null,0]
[null,null,null,null,null,"Vallée-de-la-Batiscan",null,null,null,0]
[null,null,null,null,null,"Vallée-de-la-Batiscan",null,null,null,0]
[null,null,null,null,null,"Vallée-de-la-Batiscan",null,null,null,0]
[null,null,null,null,null,"Vallée-de-la-Batiscan",null,null,null,0]
[null,null,null,null,null,"Vallée-de-la-Batiscan",null,null,null,0]
[null,null,null,null,null,"Vallée-de-la-Batiscan",null,null,null,0]
[null,null,null,null,null,"Vallée-de-la-Batiscan",null,null,null,0]
[null,null,null,null,null,"Vallée-de-la-Batiscan",null,null,null,0]
[null,null,null,null,null,"Vallée-de-la-Batiscan",null,null,null,0]
[null,null,null,null,null,"Vallée-de-la-Batiscan",null,null,null,0]
[null,null,null,null,null,"Vallée-de-la-Batiscan",null,null,null,0]
[null,null,null,null,null,"Vallée-de-la-Batiscan",null,null,null,0]
[null,null,null,null,null,"Vallée-de-la-Batiscan",null,null,null,0]
[null,null,null,null,null,"Vallée-de-la-Batiscan",null,null,null,0]
[null,null,null,null,null,"Vallée-de-la-Batiscan",null,null,null,0]
[null,null,null,null,null,"Vallée-de-la-Batiscan",null,null,null,0]
[null,null,null,null,null,"Vallée-de-la-Batiscan",null,null,null,0]
[null,null,null,null,null,"Vallée-de-la-Batiscan",null,null,null,0]
[null,null,null,null,null,"Vallée-de-la-Batiscan",null,null,null,0]
[null,null,null,null,null,"Vallée-de-la-Batiscan",null,null,null,0]
[null,null,null,null,null,"Vallée-de-la-Batiscan",null,null,null,0]
[null,null,null,null,null,null,null,null,null,0]
[null,null,null,null,null,null,null,null,null,0]
[null,null,null,null,null,null,null,null,null,0]
[null,null,null,null,null,null,null,null,null,0]
[null,null,null,null,null,null,null,null,null,0]
[null,null,null,null,null,null,null,null,null,0]
[null,null,null,null,null,null,null,null,null,0]
[null,null,null,null,null,null,null,null,null,0]
[null,null,null,null,null,null,null,null,null,0]
[null,null,null,null,null,null,null,null,null,0]
[null,null,null,null,null,null,null,null,null,0]
[null,null,null,null,null,null,null,null,null,0]
[null,null,null,null,null,null,null,null,null,0]
[null,null,null,null,null,null,null,null,null,0]
[null,null,null,null,null,null,null,null,null,0]
[null,null,null,null,null,null,null,null,null,0]
[null,null,null,null,null,null,null,null,null,0]
[null,null,null,null,null,null,null,null,null,0]
[null,null,null,null,null,null,null,null,null,0]
[null,null,null,null,null,null,null,null,null,0]
[null,null,null,null,null,null,null,null,null,0]
[null,null,null,null,null,null,null,null,null,0]
[null,null,null,null,null,null,null,null,null,0]
[null,null,null,null,null,null,null,null,null,0]
[null,null,null,null,null,null,null,null,null,0]
[null,null,null,null,null,null,null,null,null,0]
[null,null,null,null,null,null,null,null,null,{"$f":"SUMIF(K135:S135,\"<>\",$K$6:$S$6)","v":0}]
[null,null,null,null,null,null,null,null,null,0]
[null,null,null,null,null,null,null,null,null,0]
[null,null,null,null,null,null,null,null,null,0]
[null,null,null,null,null,null,null,null,null,0]
[null,null,null,null,null,null,null,null,null,0]
[null,null,null,null,null,null,null,null,null,0]
[null,null,null,null,null,null,null,null,null,0]
[null,null,null,null,null,null,null,null,null,0]
[null,null,null,null,null,null,null,null,null,0]
[null,null,null,null,null,null,null,null,null,0]
[null,null,null,null,null,null,null,null,null,0]
[null,null,null,null,null,null,null,null,null,0]
[null,null,null,null,null,null,null,null,null,0]
[null,null,null,null,null,null,null,null,null,0]
[null,null,null,null,null,null,null,null,null,0]
[null,null,null,null,null,null,null,null,null,0]
[null,null,null,null,null,null,null,null,null,0]
[null,null,null,null,null,null,null,null,null,0]
[null,null,null,null,null,null,null,null,null,0]
[null,null,null,null,null,null,null,null,null,0]
[null,null,null,null,null,null,null,null,null,0]
[null,null,null,null,null,null,null,null,null,0]
[null,null,null,null,null,null,null,null,null,0]
[null,null,null,null,null,null,null,null,null,0]
[null,null,null,null,null,null,null,null,null,0]
[null,null,null,null,null,null,null,null,null,0]
[null,null,null,null,null,null,null,null,null,0]
[null,null,null,null,null,null,null,null,null,0]
[null,null,null,null,null,null,null,null,null,0]
[null,null,null,null,null,null,null,null,null,0]
[null,null,null,null,null,null,null,null,null,0]
[null,null,null,null,null,null,null,null,null,0]
[null,null,null,null,null,null,null,null,null,0]
[null,null,null,null,null,null,null,null,null,0]
[null,null,null,null,null,null,null,null,null,0]
[null,null,null,null,null,null,null,null,null,0]
[null,null,null,null,null,null,null,null,null,0]
[null,null,null,null,null,null,null,null,null,0]
[null,null,null,null,null,null,null,null,null,0]
[null,null,null,null,null,null,null,null,null,0]
[null,null,null,null,null,null,null,null,null,0]
[null,null,null,null,null,null,null,null,null,0]
[null,null,null,null,null,null,null,null,null,0]
[null,null,null,null,null,null,null,null,null,0]
[null,null,null,null,null,null,null,null,null,0]
[null,null,null,null,null,null,null,null,null,0]
[null,null,null,null,null,null,null,null,null,0]
[null,null,null,null,null,null,null,null,null,0]
[null,null,null,null,null,null,null,null,null,0]
[null,null,null,null,null,null,null,null,null,0]
[null,null,null,null,null,null,null,null,null,0]
[null,null,null,null,null,null,null,null,null,0]
[null,null,null,null,null,null,null,null,null,0]
[null,null,null,null,null,null,null,null,null,0]
[null,null,null,null,null,null,null,null,null,0]
[null,null,null,null,null,null,null,null,null,0]
[null,null,null,null,null,null,null,null,null,0]
[null,null,null,null,null,null,null,null,null,0]
[null,null,null,null,null,null,null,null,null,0]
[null,null,null,null,null,null,null,null,null,0]
[null,null,null,null,null,null,null,null,null,0]
[null,null,null,null,null,null,null,null,null,0]
[null,null,null,null,null,null,null,null,null,0]
[null,null,null,null,null,null,null,null,null,{"$f":"SUMIF(K199:S199,\"<>\",$K$6:$S$6)","v":0}]
[null,null,null,null,null,null,null,null,null,0]
[null,null,null,null,null,null,null,null,null,0]
[null,null,null,null,null,null,null,null,null,0]
[null,null,null,null,null,null,null,null,null,0]
[null,null,null,null,null,null,null,null,null,0]
[null,null,null,null,null,null,null,null,null,0]
[null,null,null,null,null,null,null,null,null,0]
[null,null,null,null,null,null,null,null,null,0]
[null,null,null,null,null,null,null,null,null,0]
[null,null,null,null,null,null,null,null,null,0]
[null,null,null,null,null,null,null,null,null,0]
[null,null,null,null,null,null,null,null,null,0]
[null,null,null,null,null,null,null,null,null,0]
[null,null,null,null,null,null,null,null,null,0]
[null,null,null,null,null,null,null,null,null,0]
[null,null,null,null,null,null,null,null,null,0]
[null,null,null,null,null,null,null,null,null,0]
[null,null,null,null,null,null,null,null,null,0]
[null,null,null,null,null,null,null,null,null,0]
[null,null,null,null,null,null,null,null,null,0]
[null,null,null,null,null,null,null,null,null,0]
[null,null,null,null,null,null,null,null,null,0]
[null,null,null,null,null,null,null,null,null,0]
[null,null,null,null,null,null,null,null,null,0]
[null,null,null,null,null,null,null,null,null,0]
[null,null,null,null,null,null,null,null,null,0]
[null,null,null,null,null,null,null,null,null,0]
[null,null,null,null,null,null,null,null,null,0]
[null,null,null,null,null,null,null,null,null,0]
[null,null,null,null,null,null,null,null,null,0]
[null,null,null,null,null,null,null,null,null,0]
[null,null,null,null,null,null,null,null,null,0]
[null,null,null,null,null,null,null,null,null,0]
[null,null,null,null,null,null,null,null,null,0]
[null,null,null,null,null,null,null,null,null,0]
[null,null,null,null,null,null,null,null,null,0]
[null,null,null,null,null,null,null,null,null,0]
[null,null,null,null,null,null,null,null,null,0]
[null,null,null,null,null,null,null,null,null,0]
[null,null,null,null,null,null,null,null,null,0]
[null,null,null,null,null,null,null,null,null,0]
[null,null,null,null,null,null,null,null,null,0]
[null,null,null,null,null,null,null,null,null,0]
[null,null,null,null,null,null,null,null,null,0]
[null,null,null,null,null,null,null,null,null,0]
[null,null,null,null,null,null,null,null,null,0]
[null,null,null,null,null,null,null,null,null,0]
[null,null,null,null,null,null,null,null,null,0]
[null,null,null,null,null,null,null,null,null,0]
[null,null,null,null,null,null,null,null,null,0]
[null,null,null,null,null,null,null,null,null,0]
[null,null,null,null,null,null,null,null,null,0]
[null,null,null,null,null,null,null,null,null,0]
[null,null,null,null,null,null,null,null,null,0]
[null,null,null,null,null,null,null,null,null,0]
[null,null,null,null,null,null,null,null,null,0]
[null,null,null,null,null,null,null,null,null,0]
[null,null,null,null,null,null,null,null,null,0]
[null,null,null,null,null,null,null,null,null,0]
[null,null,null,null,null,null,null,null,null,0]
[null,null,null,null,null,null,null,null,null,0]
[null,null,null,null,null,null,null,null,null,0]
[null,null,null,null,null,null,null,null,null,0]
[null,null,null,null,null,null,null,null,null,{"$f":"SUMIF(K263:S263,\"<>\",$K$6:$S$6)","v":0}]
[null,null,null,null,null,null,null,null,null,0]
[null,null,null,null,null,null,null,null,null,0]
[null,null,null,null,null,null,null,null,null,0]
[null,null,null,null,null,null,null,null,null,0]
[null,null,null,null,null,null,null,null,null,0]
[null,null,null,null,null,null,null,null,null,0]
[null,null,null,null,null,null,null,null,null,0]
[null,null,null,null,null,null,null,null,null,0]
[null,null,null,null,null,null,null,null,null,0]
[null,null,null,null,null,null,null,null,null,0]
[null,null,null,null,null,null,null,null,null,0]
[null,null,null,null,null,null,null,null,null,0]
[null,null,null,null,null,null,null,null,null,0]
[null,null,null,null,null,null,null,null,null,0]
[null,null,null,null,null,null,null,null,null,0]
[null,null,null,null,null,null,null,null,null,0]
[null,null,null,null,null,null,null,null,null,0]
[null,null,null,null,null,null,null,null,null,0]
[null,null,null,null,null,null,null,null,null,0]
[null,null,null,null,null,null,null,null,null,0]
[null,null,null,null,null,null,null,null,null,0]
[null,null,null,null,null,null,null,null,null,0]
[null,null,null,null,null,null,null,null,null,0]
[null,null,null,null,null,null,null,null,null,0]
[null,null,null,null,null,null,null,null,null,0]
[null,null,null,null,null,null,null,null,null,0]
[null,null,null,null,null,null,null,null,null,0]
[null,null,null,null,null,null,null,null,null,0]
[null,null,null,null,null,null,null,null,null,0]
[null,null,null,null,null,null,null,null,null,0]
[null,null,null,null,null,null,null,null,null,0]
[null,null,null,null,null,null,null,null,null,0]
[null,null,null,null,null,null,null,null,null,0]
[null,null,null,null,null,null,null,null,null,0]
[null,null,null,null,null,null,null,null,null,0]
[null,null,null,null,null,null,null,null,null,0]
[null,null,null,null,null,null,null,null,null,0]
[null,null,null,null,null,null,null,null,null,0]
[null,null,null,null,null,null,null,null,null,0]
[null,null,null,null,null,null,null,null,null,0]
[null,null,null,null,null,null,null,null,null,0]
[null,null,null,null,null,null,null,null,null,0]
[null,null,null,null,null,null,null,null,null,0]
[null,null,null,null,null,null,null,null,null,0]
[null,null,null,null,null,null,null,null,null,0]
[null,null,null,null,null,null,null,null,null,0]
[null,null,null,null,null,null,null,null,null,0]
[null,null,null,null,null,null,null,null,null,0]
[null,null,null,null,null,null,null,null,null,0]
[null,null,null,null,null,null,null,null,null,0]
[null,null,null,null,null,null,null,null,null,0]
[null,null,null,null,null,null,null,null,null,0]
[null,null,null,null,null,null,null,null,null,0]
[null,null,null,null,null,null,null,null,null,0]
[null,null,null,null,null,null,null,null,null,0]
[null,null,null,null,null,null,null,null,null,0]
[null,null,null,null,null,null,null,null,null,0]
[null,null,null,null,null,null,null,null,null,0]
[null,null,null,null,null,null,null,null,null,0]
[null,null,null,null,null,null,null,null,null,0]
[null,null,null,null,null,null,null,null,null,0]
[null,null,null,null,null,null,null,null,null,0]
[null,null,null,null,null,null,null,null,null,0]
[null,null,null,null,null,null,null,null,null,{"$f":"SUMIF(K327:S327,\"<>\",$K$6:$S$6)","v":0}]
[null,null,null,null,null,null,null,null,null,0]
[null,null,null,null,null,null,null,null,null,0]
[null,null,null,null,null,null,null,null,null,0]
[null,null,null,null,null,null,null,null,null,0]
[null,null,null,null,null,null,null,null,null,0]
[null,null,null,null,null,null,null,null,null,0]
[null,null,null,null,null,null,null,null,null,0]
[null,null,null,null,null,null,null,null,null,0]
[null,null,null,null,null,null,null,null,null,0]
[null,null,null,null,null,null,null,null,null,0]
[null,null,null,null,null,null,null,null,null,0]
[null,null,null,null,null,null,null,null,null,0]
[null,null,null,null,null,null,null,null,null,0]
[null,null,null,null,null,null,null,null,null,0]
[null,null,null,null,null,null,null,null,null,0]
[null,null,null,null,null,null,null,null,null,0]
[null,null,null,null,null,null,null,null,null,0]
[null,null,null,null,null,null,null,null,null,0]
[null,null,null,null,null,null,null,null,null,0]
[null,null,null,null,null,null,null,null,null,0]
[null,null,null,null,null,null,null,null,null,0]
[null,null,null,null,null,null,null,null,null,0]
[null,null,null,null,null,null,null,null,null,0]
[null,null,null,null,null,null,null,null,null,0]
[null,null,null,null,null,null,null,null,null,0]
[null,null,null,null,null,null,null,null,null,0]
[null,null,null,null,null,null,null,null,null,0]
[null,null,null,null,null,null,null,null,null,0]
[null,null,null,null,null,null,null,null,null,0]
[null,null,null,null,null,null,null,null,null,0]
[null,null,null,null,null,null,null,null,null,0]
[null,null,null,null,null,null,null,null,null,0]
[null,null,null,null,null,null,null,null,null,0]
[null,null,null,null,null,null,null,null,null,0]
[null,null,null,null,null,null,null,null,null,0]
[null,null,null,null,null,null,null,null,null,0]
[null,null,null,null,null,null,null,null,null,0]
[null,null,null,null,null,null,null,null,null,0]
[null,null,null,null,null,null,null,null,null,0]
[null,null,null,null,null,null,null,null,null,0]
[null,null,null,null,null,null,null,null,null,0]
[null,null,null,null,null,null,null,null,null,0]
[null,null,null,null,null,null,null,null,null,0]
[null,null,null,null,null,null,null,null,null,0]
[null,null,null,null,null,null,null,null,null,0]
[null,null,null,null,null,null,null,null,null,0]
[null,null,null,null,null,null,null,null,null,0]
[null,null,null,null,null,null,null,null,null,0]
[null,null,null,null,null,null,null,null,null,0]
[null,null,null,null,null,null,null,null,null,0]
[null,null,null,null,null,null,null,null,null,0]
[null,null,null,null,null,null,null,null,null,0]
[null,null,null,null,null,null,null,null,null,0]
[null,null,null,null,null,null,null,null,null,0]
[null,null,null,null,null,null,null,null,null,0]
[null,null,null,null,null,null,null,null,null,0]
[null,null,null,null,null,null,null,null,null,0]
[null,null,null,null,null,null,null,null,null,0]
[null,null,null,null,null,null,null,null,null,0]
[null,null,null,null,null,null,null,null,null,0]
[null,null,null,null,null,null,null,null,null,0]
[null,null,null,null,null,null,null,null,null,0]
[null,null,null,null,null,null,null,null,null,0]
[null,null,null,null,null,null,null,null,null,{"$f":"SUMIF(K391:S391,\"<>\",$K$6:$S$6)","v":0}]
[null,null,null,null,null,null,null,null,null,0]
[null,null,null,null,null,null,null,null,null,0]
[null,null,null,null,null,null,null,null,null,0]
[null,null,null,null,null,null,null,null,null,0]
[null,null,null,null,null,null,null,null,null,0]
[null,null,null,null,null,null,null,null,null,0]
[null,null,null,null,null,null,null,null,null,0]
[null,null,null,null,null,null,null,null,null,0]
[null,null,null,null,null,null,null,null,null,0]
[null,null,null,null,null,null,null,null,null,0]
[null,null,null,null,null,null,null,null,null,0]
[null,null,null,null,null,null,null,null,null,0]
[null,null,null,null,null,null,null,null,null,0]
[null,null,null,null,null,null,null,null,null,0]
[null,null,null,null,null,null,null,null,null,0]
[null,null,null,null,null,null,null,null,null,0]
[null,null,null,null,null,null,null,null,null,0]
[null,null,null,null,null,null,null,null,null,0]
[null,null,null,null,null,null,null,null,null,0]
[null,null,null,null,null,null,null,null,null,0]
[null,null,null,null,null,null,null,null,null,0]
[null,null,null,null,null,null,null,null,null,0]
[null,null,null,null,null,null,null,null,null,0]
[null,null,null,null,null,null,null,null,null,0]
[null,null,null,null,null,null,null,null,null,0]
[null,null,null,null,null,null,null,null,null,0]
[null,null,null,null,null,null,null,null,null,0]
[null,null,null,null,null,null,null,null,null,0]
[null,null,null,null,null,null,null,null,null,0]
[null,null,null,null,null,null,null,null,null,0]
[null,null,null,null,null,null,null,null,null,0]
[null,null,null,null,null,null,null,null,null,0]
[null,null,null,null,null,null,null,null,null,0]
[null,null,null,null,null,null,null,null,null,0]
[null,null,null,null,null,null,null,null,null,0]
[null,null,null,null,null,null,null,null,null,0]
[null,null,null,null,null,null,null,null,null,0]
[null,null,null,null,null,null,null,null,null,0]
[null,null,null,null,null,null,null,null,null,0]
[null,null,null,null,null,null,null,null,null,0]
[null,null,null,null,null,null,null,null,null,0]
[null,null,null,null,null,null,null,null,null,0]
[null,null,null,null,null,null,null,null,null,0]
[null,null,null,null,null,null,null,null,null,0]
[null,null,null,null,null,null,null,null,null,0]
[null,null,null,null,null,null,null,null,null,0]
[null,null,null,null,null,null,null,null,null,0]
[null,null,null,null,null,null,null,null,null,0]
[null,null,null,null,null,null,null,null,null,0]
[null,null,null,null,null,null,null,null,null,0]
[null,null,null,null,null,null,null,null,null,0]
[null,null,null,null,null,null,null,null,null,0]
[null,null,null,null,null,null,null,null,null,0]
[null,null,null,null,null,null,null,null,null,0]
[null,null,null,null,null,null,null,null,null,0]
[null,null,null,null,null,null,null,null,null,0]
[null,null,null,null,null,null,null,null,null,0]
[null,null,null,null,null,null,null,null,null,0]
[null,null,null,null,null,null,null,null,null,0]
[null,null,null,null,null,null,null,null,null,0]
[null,null,null,null,null,null,null,null,null,0]
[null,null,null,null,null,null,null,null,null,0]
[null,null,null,null,null,null,null,null,null,0]
[null,null,null,null,null,null,null,null,null,{"$f":"SUMIF(K455:S455,\"<>\",$K$6:$S$6)","v":0}]
[null,null,null,null,null,null,null,null,null,0]
[null,null,null,null,null,null,null,null,null,0]
[null,null,null,null,null,null,null,null,null,0]
[null,null,null,null,null,null,null,null,null,0]
[null,null,null,null,null,null,null,null,null,0]
[null,null,null,null,null,null,null,null,null,0]
[null,null,null,null,null,null,null,null,null,0]
[null,null,null,null,null,null,null,null,null,0]
[null,null,null,null,null,null,null,null,null,0]
[null,null,null,null,null,null,null,null,null,0]
[null,null,null,null,null,null,null,null,null,0]
[null,null,null,null,null,null,null,null,null,0]
[null,null,null,null,null,null,null,null,null,0]
[null,null,null,null,null,null,null,null,null,0]
[null,null,null,null,null,null,null,null,null,0]
[null,null,null,null,null,null,null,null,null,0]
[null,null,null,null,null,null,null,null,null,0]
[null,null,null,null,null,null,null,null,null,0]
[null,null,null,null,null,null,null,null,null,0]
[null,null,null,null,null,null,null,null,null,0]
[null,null,null,null,null,null,null,null,null,0]
[null,null,null,null,null,null,null,null,null,0]
[null,null,null,null,null,null,null,null,null,0]
[null,null,null,null,null,null,null,null,null,0]
[null,null,null,null,null,null,null,null,null,0]
[null,null,null,null,null,null,null,null,null,0]
[null,null,null,null,null,null,null,null,null,0]

{"sheet":"Base de données","index":5,"n_rows":9,"n_cols":3,"rows_kept":9,"cut":false,"hidden":false,"merged":[]}
["Non en attente","Shawinigan","Autres"]
["Oui argent","VB","BNY"]
["Oui chèque",null,"Drummonville"]
["Avait un crédit",null,"HSM"]
["Abonnement gratuit",null,"Maskinongé"]
[null,null,"Shawinigan"]
[null,null,"Trois-Rivières"]
[null,null,"VB"]
[null,null,"Victoriaville"]